Workbook

Sheet Introduction
K20: Version: | L20: =Settings!App_Version -> V1.0f2c
B22: =Settings!App_Name -> Blackberry Weed Management - Agricultural Productivity Model
B24: A 'cost benefit' analysis tool for a livestock grazing operation, specific to chemical control costs and projected productivity benefit
B26: This project is funded through the Established Pest Animals and Weeds Initiative, part of the Australian Government’s Agricultural Competitiveness White Paper, the government’s plan for stronger farmers and a stronger economy.
B32: Preface
B34: "Land, in economics, is the resource that encompasses the natural resources used in production. In classical economics, the three factors of production are land, labour, and capital. Land was considered to be the “original and inexhaustible gift of nature.” In modern economics, it is broadly defined to include all that nature provides, including minerals, forest products, and water and land resources." Encyclopaedia Britannica
B38: Introduction
B40: Despite the definition set out in classical economic theory, it is now universally accepted that land resources are not inexhaustible. Land is the principal asset base and means of rural production. Land infested with blackberry (Rubus fruticosus agg.) has an impaired level of productive agricultural capacity, ranging from minor to complete loss in severe cases. The economic costs in relation to lost forms of production in addition to the resources devoted to control and maintenance measures of blackberry infestation are significant. There are other major costs in terms of environmental damage and degradation. Further to this economic and environmental opportunity cost there is an ongoing and increasingly adverse impact upon the value of rural land that is severely affected by blackberry infestation. The combined impact of these main factors is estimated to result in the loss of a significant amount of economic wealth and environmental capital.
B43: Purpose of the Model
B45: This model aims to highlight the economic impact of blackberry affected agricultural land. The adverse impact that weed infestation has on livestock carrying capacities can also lead to a detrimental impact upon the underlying rural property value.
B48: The Cost Benefit Analysis Model
B50: A model has been developed for the use of land managers and other land management agencies. The model includes reference to a range of key variables and is intended to be a simple to use, decision making support tool related to the economics of blackberry management. It will assist land managers to quantify and identify the economic cost of blackberry infestation in comparison to the potential economic uplift that is acheived through improved productive capacity over a specified time frame.
L55: NEXT >>

Sheet T&C
A1: << PREVIOUS | C1: Version: | D1: =Settings!App_Version -> V1.0f2c
B3: =Settings!App_Name -> Blackberry Weed Management - Agricultural Productivity Model
B5: A 'cost benefit' analysis tool for a livestock grazing operation, specific to chemical control costs and projected productivity benefit
B8: Terms and Conditions of Model Use
B10: Explanation
B12: 1 | C12: The following terms and conditions have been prepared by Preston Rowe Paterson Albury Wodonga Pty Ltd, in their capacity as concept originators and developers of the Blackberry Weed Management – Agricultural Productivity Model (“the Model”).
B13: 2 | C13: Users agree that these terms and conditions apply to the use and application of this model.
B14: 3 | C14: The model is for indicative budgeting and scenario forecasting purposes only and is not intended to replace a customised quote for blackberry weed spraying services and formal, property specific agronomic and productivity uplift advice.
B15: 4 | C15: The Blackberry Weed Management – Agricultural Productivity Model is provided by Preston Rowe Paterson Albury Wodonga in conjunction with Agriculture Victoria, Victorian Blackberry Taskforce and Australian Government Department of Agriculture and Water Resources, subject to these Terms and Conditions.
B17: Definitions
B19: 5 | C19: The following definitions apply to these terminology as set out in Model:- - ‘Parties’ means You and/or Us as the context dictates. - ‘Model’ means the Blackberry Weed Agricultural Productivity Model - ‘We’, ‘Us’, ‘Our (s)’ means Preston Rowe Paterson Albury Wodonga , our employees, contractors, servants and agents; - ‘You’, ‘Your’ means the Parties using the Model
B21: Your Obligations
B23: 6 | C23: You agree that: (a) You will not use any advice We provide for any purpose other than as stated in the Introduction page to the Model; (b) You will not pursue any claim against Us for any loss You suffer because You have used the output of the Model for any other purpose; (c) You will indemnify Us in relation to any loss suffered by a third party that relies on the output of the Model without first receiving Our written consent to do so.
B25: Intellectual Property
B27: 7 | C27: All Our intellectual property contained within the Model, remains Our property. We only grant you licence to use Our intellectual property to carry out the purpose for which the advice was provided.
B29: Property or Valuation Circumstance Specific Qualifications, Assumptions and Conditions Precedent within our reports
B31: 8 | C31: You agree to read these qualifications, assumptions and conditions precedent carefully, and understand that if the assumptions that we have made or relied on are circumstances that do not prevail or eventuate, or are found later to be inaccurate, Our opinion as to various inputs within the Model may be materially different. You agree to solely bear the risk in relation to any loss you might suffer, should this occur.
B32: 9 | C32: The qualifications, assumptions, and conditions precedent that We make will usually depend on the circumstances of the property scenario being considered and are made in relation to matters that The model is not intended to verify the information input into the model for indicative Cost Benefit Analysis purposes.
A35: << PREVIOUS | C35: NEXT >>

Sheet Definitions
A1: << PREVIOUS | C1: Version: | D1: =Settings!App_Version -> V1.0f2c
B3: =Settings!App_Name -> Blackberry Weed Management - Agricultural Productivity Model
B5: A 'cost benefit' analysis tool for a livestock grazing operation, specific to chemical control costs and projected productivity benefit
A8: In order to get the most out of the tool, users will benefit from having an understanding of the definitions, key inputs and the underlying assumptions that are built into the model.
A9: Definitions
A11: 1 | B11: Land Class:
B12: In this model, land classess are based on the framework as set out in “The land and soil capability assessment scheme: Second approximation” as published by the NSW Government Office of Environment and Heritage.
B21: Source: | C21: “The land and soil capability assessment scheme: Second approximation” NSW Government Office of Environment and Heritage, October 2012.
A23: 1a | C23: Class 1 – Premium Quality Land
C24: Refers to a combination of LSC Classes 1 and 2 – representing extremely high and very high capability rural land;
A26: 1b | C26: Class 2 – Highly Productive Land | F26: SCROLL
C27: Refers to LSC Class 3 – High capability rural land with moderate limitations.
A29: 1c | C29: Class 3 – Moderately Productive | F29: UP TO
C30: Refers to a combination of LSC Classes 4 and 5 – moderate capability and moderate to low capability rural land. | F30: SEE
A32: 1d | C32: Class 4 – Low Productive Capacity | E32: CLASS DESCRIPTIONS
C33: Refers to a combination of LSC Classes 6, 7 and 8 – low, very low and extremely low capability rural land.
A37: 2 | B37: Infestation Intensity/Density
B38: This variable refers to the density, coverage and amount of blackberry plants within a defined area of the affected property. Visual assessment is the simplest way to determine weed density. Use the images to help with your assesment:
A40: 2a | C40: Minor (1-15% groundcover)
C41: 5% 10%
A43: 2b | C43: Moderate (16-35% groundcover)
C44: 20% 30%
A46: 2c | C46: Heavy (35%+ groundcover)
C47: 40% 50%
A51: 3 | B51: Access
B52: This variable refers to the standard of access that is available to the blackberry infested land:
A54: 3a | C54: Good – is defined as land with access tracks that are clearly defined and well formed and/or land with minimal limitations to cross country vehicular access with a fully laden purpose designed control vehicle (spray rig);
A56: 3b | C56: Fair - is defined as land with access tracks that are not defined and partially or roughly formed and/or land with a moderate level of limitation to cross country vehicular access with a fully laden purpose designed control vehicle (spray rig);
A58: 3c | C58: Difficult - is defined as land with minimal or no access tracks and/or land with major limitations to cross country vehicular access with a fully laden purpose designed control vehicle (spray rig);
A62: 4 | B62: Terrain
B63: This variable refers to the nature of the topography, slope and gradient of the blackberry infested land. Users should apply their own interpretation of terrain for use in the model, in the context of the particular property scenario. The terminology for the description of terrain adopted in this model is:
A65: 4a | C65: Flat - say, 0% to 2% grade
A67: 4b | C67: Sloping - say 2% to 10% grade
A69: 4c | C69: Steep - say greater than 10% grade
A73: 5 | B73: Treatment Regime
B75: This variable refers to the intensity of the treatment regime to be applied for blackberry eradication. The regime will be determined by the goals of the property owner and available resources. Currently available regimes in this model are:
A77: 5a | C77: Aggressive - refers to a major control program over the whole property, including all land classes and terrain classes, in the initial year, with a highly vigilant follow up strategy over the property in subsequent years
A79: 5b | C79: Active - refers to a control program over part of the property, including the more productive land classes and flat/sloping terrain in the initial year, with an active progressive follow up strategy in subsequent years over the initially treated land and a secondary focus on the less productive land and steeper terrain
A81: 5c | C81: Passive - refers to a minor control program over part of the property, focussed on the more productive land classes and flat terrain, in the initial year. The balance of the land, particularly the steeper and less productive land is not treated as a high priority until full control is acheived on the initially treated land
A85: Key Assumptions
A87: 1 | B87: All dollar amounts included in the model are GST exclusive
A88: 2 | B88: All dollar amounts and projected cashflows are nominal and not adjusted / indexed to CPI
A89: 3 | B89: The unit rates for labour and plant hire reflect trained professional contractors and modern, high quality, efficient equipment
A90: 4 | B90: Chemical product application rates are based from published label recommendations
A91: 5 | B91: Where small areas are identified for aerial control that a practical and efficient scheduling solution can be reached
A92: 6 | B92: Assumes control is undertaken in accordance with best practice under appropriate seasonal and weather conditions
A95: << PREVIOUS | C95: NEXT >>

Sheet Instructions for Use
A1: << PREVIOUS | K1: Version: | L1: =Settings!App_Version -> V1.0f2c
B3: =Settings!App_Name -> Blackberry Weed Management - Agricultural Productivity Model
B5: A 'cost benefit' analysis tool for a livestock grazing operation, specific to chemical control costs and projected productivity benefit
B7: Instructions for Use | M7: To get started and activate the model:
B9: Some key points for users to note: | M9: 1. A pale yellow ribbon containing a security warning/s may appear at the top of the document when excel is opened.
M10: 2. You will need to click "Enable Macros" on the yellow ribbon.
B11: Worksheet Tab Colours: | D11: Introduction, Definitions and User Instructions | M11: 3. You will need to click on "Enable Content" and "Enable Editing" on the yellow ribbon.
D12: User information and inputs required | M12: 4. Read the "Introduction" page and agree to Terms of Use.
D13: Model Outputs | M13: 5. Read the "Terms and Conditions" page and agree to Terms of Use.
M14: 6. Read the "Definitions" page and agree to Terms of Use.
B15: Pale Yellow Cells: | D15: User Data Entry Cells | M15: 7. Read the steps set out on the page "Instructions for Use" and agree to Terms of Use.
B17: Orange Cells: | D17: Drop Down Box selection cells
B19: Light Grey Cells : | D19: Provides advisory notes to assist model users | M19: Click "I Agree…" to enable the model (the model will then show all its remaining sheets)
B21: Explanation Note: | E21: Hover over cells with a red marker in top RH corner
B23: Advisory Notes: | D23: Red bold italic text
B25: Follow the arrows: | D25: >>>> | E25: (input data and follow arrow direction to the next data table where indicated)
B27: Populate the information in the yellow tabs from left to right, populating information from top to bottom:
C28: First: | D28: "Treatments & Products"
C29: Second: | D29: "Land & Property"
C30: Third: | D30: "Control Methods"
C31: Fourth | D31: Review the assumptions of your selected regime in
D32: the Treatment Regime worksheet
B34: All other cells in the model are linked to pre determined background data and are not editable.
A36: << PREVIOUS | K36: NEXT >>

Sheet 1. Treatments & Products
A1: << PREVIOUS | F1: Version: | G1: =Settings!App_Version -> V1.0f2c
B3: ="Victorian Blackberry Taskforce - "&Settings!App_Name -> Victorian Blackberry Taskforce - Blackberry Weed Management - Agricultural Productivity Model
B5: =Introduction!B24 -> A 'cost benefit' analysis tool for a livestock grazing operation, specific to chemical control costs and projected productivity benefit
A8: Table 1: Product Details & Costs | C8: IMPORTANT: The user must complete relevant information in Table 1 before selecting products for the treatment mix in Table 2)
B10: The herbicide products listed in Table 1 below are examples of common chemicals used for blackberry treatment. The content of these columns (shaded yellow) can be tailored to suit the user. As the purchasing power of different users is variable, users should apply their own figures to the cost of of the chemicals employed in the blackberry control program. These component products form the basis of the treatment to be selected by the user for their particular circumstances.
B12: Product Name | C12: Active Constituents | D12: Strength | E12: State | F12: Unit | G12: Cost/Drum | H12: Units/Drum | I12: Cost/Unit | J12: Unit / 100 L | K12: Units /1000 L | L12: Cost/1000 L
A13: 1 | B13: Alpha Consume - Wetter | C13: Polyether modified polysiloxane | D13: 1020g/L | E13: Liquid | F13: litres | G13: 310 | H13: 20 | I13: =IF(H13=0,0,G13/H13) -> 15.5 | J13: 0.2 | K13: =J13*10 -> 2 | L13: =I13*K13 -> 31
A14: 2 | B14: Brush Off (Genfarm Metsulfuron 600) | C14: Metsulfuron-Methyl | D14: 600g/L | E14: Solid | F14: grams | G14: 24 | H14: 500 | I14: =IF(H14=0,0,G14/H14) -> 0.048 | J14: 10 | K14: =J14*10 -> 100 | L14: 4.8
A15: 3 | B15: Grazon DS (Genfarm Tric/Pic) | C15: Picloram plus Triclopyr | D15: 100g/300g | E15: Liquid | F15: litres | G15: 310 | H15: 20 | I15: 15.5 | J15: 0.35 | K15: =J15*10 -> 3.5 | L15: 54.25
A16: 4 | B16: Grazon Extra | C16: Picloram plus Triclopyr plus Aminopyralid | D16: 100g/300g/8g | E16: Liquid | F16: litres | G16: 615 | H16: 20 | I16: 30.75 | J16: 0.35 | K16: 3.5 | L16: 107.625
A17: 5 | B17: Stinger | C17: Aminopyralid plus Metsulfuron-Methyl | D17: 375g/300g | E17: Solid granule | F17: grams | G17: 142.5 | H17: 500 | I17: 0.285 | J17: 20 | K17: =J17*10 -> 200 | L17: =I17*K17 -> 57
A18: 6 | B18: Garlon | G18: 250 | H18: 20 | I18: 12.5 | J18: 0.2 | K18: =J18*10 -> 2 | L18: =I18*K18 -> 25
A19: 7 | I19: 0 | K19: 0 | L19: 0
A20: 8 | I20: 0 | K20: 0 | L20: 0
A21: 9 | I21: 0 | K21: 0 | L21: 0
A22: 10 | I22: 0 | K22: 0 | L22: 0
A23: 11 | I23: 0 | K23: 0 | L23: 0
B26: The herbicide product treatment combinations listed in Table 2 below are examples of common mixes used for blackberry treatment. The treatment combination name (ie Mix 1, Mix 2, Mix 3 etc) can be tailored by the user, according to the herbicides and additives to be included in the overall mix. The user can select products from the ORANGE shaded cells, which are sourced from Table 1. The cost of the specified treatment is therefore able to be tailored to the specific circumstances of the user. The blue column sets out the total combined cost of the materials expressed per 1000 litres of mixed product.
A28: Table 2: Treatment Data
B30: Treatment Combination Name | C30: Product 1 | D30: Prod 1 $/kL | E30: Product 2 | F30: Prod 2 $/kL | G30: Product 3 | H30: Prod 3 $/kL | I30: Product 4 | J30: Prod 4 $/kL | K30: Treatment Cost $/kL
A31: 1 | B31: eg Custom Mix 1 | C31: Grazon DS (Genfarm Tric/Pic) | D31: =IF(ISBLANK(C31),0,INDEX(Product_Details_Cost_Per_kL,MATCH(C31,Product_Details_Name,0))) -> 54.25 | E31: Alpha Consume - Wetter | F31: =IF(ISBLANK(E31),0,INDEX(Product_Details_Cost_Per_kL,MATCH(E31,Product_Details_Name,0))) -> 31 | H31: =IF(ISBLANK(G31),0,INDEX(Product_Details_Cost_Per_kL,MATCH(G31,Product_Details_Name,0))) -> 0 | J31: =IF(ISBLANK(I31),0,INDEX(Product_Details_Cost_Per_kL,MATCH(I31,Product_Details_Name,0))) -> 0 | K31: =SUM(D31,F31,H31,J31) -> 85.25
A32: 2 | B32: eg Custom Mix 2 | C32: Grazon Extra | D32: =IF(ISBLANK(C32),0,INDEX(Product_Details_Cost_Per_kL,MATCH(C32,Product_Details_Name,0))) -> 107.625 | F32: 0 | H32: 0 | J32: 0 | K32: 107.625
A33: 3 | B33: (user to create a name) | D33: 0 | F33: 0 | H33: 0 | J33: 0 | K33: 0
A34: 4 | D34: 0 | F34: =IF(ISBLANK(E34),0,INDEX(Product_Details_Cost_Per_kL,MATCH(E34,Product_Details_Name,0))) -> 0 | H34: 0 | J34: 0 | K34: 0
A35: 5 | D35: 0 | F35: 0 | H35: 0 | J35: 0 | K35: 0
A36: 6 | D36: 0 | F36: 0 | H36: 0 | J36: 0 | K36: 0
A37: 7 | D37: 0 | F37: 0 | H37: 0 | J37: 0 | K37: 0
A38: 8 | D38: 0 | F38: 0 | H38: 0 | J38: 0 | K38: 0
A39: 9 | D39: 0 | F39: 0 | H39: =IF(ISBLANK(G39),0,INDEX(Product_Details_Cost_Per_kL,MATCH(G39,Product_Details_Name,0))) -> 0 | J39: 0 | K39: 0
A40: 10 | D40: 0 | F40: 0 | H40: 0 | J40: 0 | K40: 0
A41: 11 | D41: 0 | F41: 0 | H41: 0 | J41: 0 | K41: 0
A42: 12 | D42: 0 | F42: 0 | H42: 0 | J42: 0 | K42: 0
A43: 13 | D43: 0 | F43: 0 | H43: 0 | J43: 0 | K43: 0
A44: 14 | D44: 0 | F44: 0 | H44: 0 | J44: 0 | K44: 0
A47: << PREVIOUS
K48: NEXT >>

Sheet 2. Land & Property
A1: << PREVIOUS | J1: Version: | K1: =Settings!App_Version -> V1.0f2c
B3: ="Victorian Blackberry Taskforce - "&Settings!App_Name -> Victorian Blackberry Taskforce - Blackberry Weed Management - Agricultural Productivity Model
B5: =Introduction!B24 -> A 'cost benefit' analysis tool for a livestock grazing operation, specific to chemical control costs and projected productivity benefit
B7: Key Assumptions
B8: 1 | C8: All dollar amounts are GST exclusive
B9: 2 | C9: All dollar amounts and projected cashflows are nominal and not adjusted / indexed to CPI
B10: 3 | C10: The unit rates for labour and plant hire reflect trained professional contractors and modern, high quality, efficient equipment
B11: 4 | C11: Chemical product application rates are based from published label recommendations
B12: 5 | C12: Where small areas are identified for aerial control that a practical scheduling solution can be reached
B13: 6 | C13: Assumes control is undertaken in accordance with best practice under appropriate seasonal and weather conditions
B15: 1.0 Landholder Data
B17: Owner Name:
B18: Locality / District:
B19: User Reference:
B21: 2.0 General Property Data
B23: Property Name:
B24: Road Name:
B25: District / Township:
B26: State:
B27: Postcode:
B28: Overall Land Area: | D28: =H58 -> 0 | F28: which equates to: | G28: =D28/Hectares_To_Acres -> 0
B30: Geocode Reference: | D30: Not yet developed
B31: Latitude / Longtitude: | D31: Not yet developed
B33: 3.0 Livestock Production Gross Margins
B35: 3.1 Gross Livestock Income | H35: 3.2 Production Costs & Gross Margin | M35: 3.3 Livestock Production per annum
C36: Sales per annum | D36: Sale Weight | E36: Sale Price | H36: Variable Cost | I36: Variable Cost | J36: Gross Margin | K36: Total | M36: Livestock Class | N36: DSE Equivalent
B37: Livestock Class | C37: No. head | D37: Average kg/head | E37: Average $/kg | F37: Average $/head | H37: % of sale price | I37: $ per head | J37: $ per head | K37: Gross Margin | M37: DSE Equivalent | N37: Override | O37: Total DSE equiv.
C38: 0 | D38: 0 | E38: 0 | F38: =D38*E38 -> 0 | G38: >>>> | H38: 0 | I38: =H38*F38 -> 0 | J38: =F38-I38 -> 0 | K38: =C38*J38 -> 0 | L38: >>>> | M38: =IF(ISNA(MATCH(B38,Livestock_Class_Names,0)),0,INDEX(Livestock_Class_DSE_Equiv,(MATCH(B38,Livestock_Class_Names,0)))) -> 0 | N38: 0 | O38: =C38*IF(VALUE(N38)=0,M38,N38) -> 0
C39: 0 | D39: 0 | E39: 0 | F39: =D39*E39 -> 0 | G39: >>>> | H39: 0 | I39: =H39*F39 -> 0 | J39: =F39-I39 -> 0 | K39: =C39*J39 -> 0 | L39: >>>> | M39: =IF(ISNA(MATCH(B39,Livestock_Class_Names,0)),0,INDEX(Livestock_Class_DSE_Equiv,(MATCH(B39,Livestock_Class_Names,0)))) -> 0 | N39: 0 | O39: =C39*IF(VALUE(N39)=0,M39,N39) -> 0
C40: 0 | D40: 0 | E40: 0 | F40: 0 | G40: >>>> | H40: 0 | I40: =H40*F40 -> 0 | J40: =F40-I40 -> 0 | K40: =C40*J40 -> 0 | L40: >>>> | M40: =IF(ISNA(MATCH(B40,Livestock_Class_Names,0)),0,INDEX(Livestock_Class_DSE_Equiv,(MATCH(B40,Livestock_Class_Names,0)))) -> 0 | N40: 0 | O40: 0
C41: 0 | D41: 0 | E41: 0 | F41: 0 | G41: >>>> | H41: 0 | I41: =H41*F41 -> 0 | J41: =F41-I41 -> 0 | K41: =C41*J41 -> 0 | L41: >>>> | M41: =IF(ISNA(MATCH(B41,Livestock_Class_Names,0)),0,INDEX(Livestock_Class_DSE_Equiv,(MATCH(B41,Livestock_Class_Names,0)))) -> 0 | N41: 0 | O41: 0
H42: Total | K42: =SUM(K38:K41) -> 0 | M42: Total | O42: =SUM(O38:O41) -> 0
B44: 3.4 Profitability Measure
B45: For modelling purposes, adopt sustainable profit per DSE (per annum): | F45: =IF(O42=0,0,K42/O42) -> 0
B48: 4.0 Land Classification & Livestock Carrying Capacity Data
B50: 4.1 Overall Property - Hectares by Land Class & Terrain | J50: 4.2 Livestock Carrying Capacity by Land Class | O50: 4.3 Projected Uplift
B52: REFER TO HYPERLINKS BELOW FOR DESCRIPTIONS | E52: Terrain in Hectares | J52: DSE Per Hectare | L52: DSE Per Acre | P52: Productivity Uplift Post Treatment
E53: Flat | F53: Sloping | G53: Steep | H53: Totals | J53: Current | K53: Potential | L53: Current | M53: Potential | O53: DSE per ha | P53: Total DSE equiv' | Q53: Efficiency Gain
A54: 1 | B54: =INDEX(Land_Class,A54)&" - Premium Quality Land" -> Class 1 - Premium Quality Land | E54: 0 | F54: 0 | G54: 0 | H54: =SUM(E54:G54) -> 0 | I54: >>>> | J54: 0 | K54: 0 | L54: =J54/Hectares_To_Acres -> 0 | M54: 0 | N54: >>>> | O54: =K54-J54 -> 0 | P54: =O54*H54 -> 0 | Q54: =IF(J54=0,0,O54/J54) -> 0
A55: 2 | B55: =INDEX(Land_Class,A55)&" - Highly Productive" -> Class 2 - Highly Productive | E55: 0 | F55: 0 | G55: 0 | H55: =SUM(E55:G55) -> 0 | I55: >>>> | J55: 0 | K55: 0 | L55: 0 | M55: 0 | N55: >>>> | O55: =K55-J55 -> 0 | P55: =O55*H55 -> 0 | Q55: =IF(J55=0,0,O55/J55) -> 0
A56: 3 | B56: =INDEX(Land_Class,A56)&" - Moderately Productive" -> Class 3 - Moderately Productive | E56: 0 | F56: 0 | G56: 0 | H56: =SUM(E56:G56) -> 0 | I56: >>>> | J56: 0 | K56: 0 | L56: 0 | M56: 0 | N56: >>>> | O56: =K56-J56 -> 0 | P56: =O56*H56 -> 0 | Q56: =IF(J56=0,0,O56/J56) -> 0
A57: 4 | B57: =INDEX(Land_Class,A57)&" - Low Productive Capacity" -> Class 4 - Low Productive Capacity | E57: 0 | F57: 0 | G57: 0 | H57: =SUM(E57:G57) -> 0 | I57: >>>> | J57: 0 | K57: 0 | L57: 0 | M57: 0 | N57: >>>> | O57: =K57-J57 -> 0 | P57: =O57*H57 -> 0 | Q57: =IF(J57=0,0,O57/J57) -> 0
B58: TOTAL HECTARES | E58: =SUM(E54:E57) -> 0 | F58: =SUM(F54:F57) -> 0 | G58: =SUM(G54:G57) -> 0 | H58: =SUM(E58:G58) -> 0 | O58: Total | P58: =SUM(P54:P57) -> 0
I59: DSE Capacity: | J59: =SUMPRODUCT($H$54:$H$57,J54:J57) -> 0 | K59: =SUMPRODUCT($H$54:$H$57,K54:K57) -> 0
I60: Cow Area Equivalent: | J60: =J59/DSE_Per_Cow -> 0 | K60: =K59/DSE_Per_Cow -> 0
B62: 5.0 Treatment Regime, Productivity & Profitability
B64: 5.1 Treatment Regime | D64: (select from the Drop Down box below)
B66: Treatment Regime: | C66: >>>> | D66: Aggressive
E68: 0 | F68: 0 | G68: 0
C69: Total Projected Gain (pa) | D69: Year 1 | E69: Year 2 | F69: Year 3 | G69: Year 4 | H69: Year 5 | I69: Year 6 | J69: Affected Area (ha)
B70: Class 1 | C70: =P54*$F$45 -> 0 | D70: =INDEX(Treatment_By_Class_Year_Uplift,MATCH($B70&"/"&D$69,Treatment_By_Class_Year_Tag,0),1) -> 0.25 | E70: 0.6 | F70: 0.9 | G70: 1 | H70: 1 | I70: 1 | J70: =M92+M93+M94 -> 0
B71: Class 2 | C71: =P55*$F$45 -> 0 | D71: 0.25 | E71: 0.6 | F71: 0.9 | G71: 1 | H71: 1 | I71: 1 | J71: =M95+M96+M97 -> 0
B72: Class 3 | C72: =P56*$F$45 -> 0 | D72: 0.25 | E72: 0.6 | F72: 0.9 | G72: 1 | H72: 1 | I72: 1 | J72: =M98+M99+M100 -> 0
B73: Class 4 | C73: =P57*$F$45 -> 0 | D73: 0.25 | E73: 0.6 | F73: 0.9 | G73: 1 | H73: 1 | I73: 1 | J73: =M101+M102+M103 -> 0
C74: =SUM(C70:C73) -> 0
B76: 5.2 Notional Productivity Benefit (excluding capital cost of breeding stock acquisition) | K76: 5.3 Notional Profitability Summary at Completition
B78: Total Projected Gain (pa) | D78: Year 1 | E78: Year 2 | F78: Year 3 | G78: Year 4 | H78: Year 5 | I78: Year 6 | M78: DSE | N78: Profit / DSE | O78: Gross Profit (pa)
B79: =C70 -> 0 | C79: Class 1 | D79: =$B$79*D70 -> 0 | E79: =$B$79*E70 -> 0 | F79: =$B$79*F70 -> 0 | G79: 0 | H79: 0 | I79: 0 | K79: Current | M79: =J59 -> 0 | N79: =F45 -> 0 | O79: =F45*J59 -> 0
B80: =C71 -> 0 | C80: Class 2 | D80: =$D$71*B80 -> 0 | E80: =$E$71*B80 -> 0 | F80: =$F$71*B80 -> 0 | G80: =$G$71*B80 -> 0 | H80: =$H$71*B80 -> 0 | I80: =$H$71*B80 -> 0 | K80: Projected | M80: =K59 -> 0 | N80: =F45 -> 0 | O80: =F45*K59 -> 0
B81: =C72 -> 0 | C81: Class 3 | D81: =$B$81*D72 -> 0 | E81: 0 | F81: 0 | G81: 0 | H81: 0 | I81: 0 | K81: Uplift | M81: =K59-J59 -> 0 | N81: =F45 -> 0 | O81: =O80-O79 -> 0
B82: =C73 -> 0 | C82: Class 4 | D82: =$B$82*D73 -> 0 | E82: 0 | F82: 0 | G82: 0 | H82: 0 | I82: 0
B83: =SUM(B79:B82) -> 0 | C83: Total | D83: =SUM(D79:D82) -> 0 | E83: =SUM(E79:E82) -> 0 | F83: 0 | G83: 0 | H83: =SUM(H79:H82) -> 0 | I83: =SUM(I79:I82) -> 0
B85: Cumulative Benefit | D85: =D83 -> 0 | E85: =D85+E83 -> 0 | F85: =E85+F83 -> 0 | G85: =F85+G83 -> 0 | H85: =F85+H83 -> 0 | I85: =G85+I83 -> 0
B87: 6.0 Infestation Details, Control Methods & Treatments
B89: 6.1 Infestion & Control Details by Class & Terrain
B90: Only enter values for non-greyed out rows, ie where Hectares is > 0 | K90: Click here to see the Product Treatment Options>>
B91: Class By Terrain | D91: Hectares (as above) | E91: % Infestation | F91: Infestation Density | G91: Access | H91: Control Method | J91: Treatment Combination Name | M91: Hectares Affected | N91: Terrain+Access | O91: Range1 Name | P91: Range2 Name | Q91: Hectares/Day | R91: L/Hectare | S91: Labour & Equip/Day | T91: Labour & Equip Cost | U91: Chemical Cost | V91: Total Cost
A92: 1 | B92: =INDEX(Land_Class,A92)&"/"&$E$53 -> Class 1/Flat | D92: =$E$54 -> 0 | E92: 0 | M92: =D92*E92 -> 0 | N92: =MID(B92,FIND("/",B92)+1,100)&"+"&G92 -> Flat+ | O92: =CHOOSE(MATCH($H92,Control_Method_Tbl[Method Name],0),"Method_1_Hectares_Per_Day","Method_2_Hectares_Per_Day","Method_3_Hectares_Per_Day") ->  | P92: =CHOOSE(MATCH($H92,Control_Method_Tbl[Method Name],0),"Method_1_Litres_Per_Hectare","Method_2_Litres_Per_Hectare","Method_3_Litres_Per_Hectare") ->  | Q92: =INDEX(INDIRECT(O92),MATCH($N92,INDEX(INDIRECT(O92),0,1),0),MATCH($F92,Infestation_Intensity_Names,0)) ->  | R92: =INDEX(INDIRECT(P92),MATCH($N92,INDEX(INDIRECT(P92),0,1),0),MATCH($F92,Infestation_Intensity_Names,0)) ->  | S92: =CHOOSE(MATCH($H92,Control_Method_Tbl[Method Name],0),Method_1_Labour_Equip_Per_Day,Method_2_Labour_Equip_Per_Day,Method_3_Labour_Equip_Per_Day) ->  | T92: =IF(VALUE(E92)=0,0,S92/Q92) -> 0 | U92: =IF(VALUE(E92)=0,0,R92/1000*INDEX(Treatment_Details_Cost_Per_kL,MATCH($J92,Treatment_Details_Name,0))) -> 0 | V92: =SUM(T92:U92) -> 0
A93: 1 | B93: =INDEX(Land_Class,A93)&"/"&$F$53 -> Class 1/Sloping | D93: =$F$54 -> 0 | E93: 0 | M93: =D93*E93 -> 0 | N93: Sloping+ | O93: =CHOOSE(MATCH($H93,Control_Method_Tbl[Method Name],0),"Method_1_Hectares_Per_Day","Method_2_Hectares_Per_Day","Method_3_Hectares_Per_Day") ->  | P93: =CHOOSE(MATCH($H93,Control_Method_Tbl[Method Name],0),"Method_1_Litres_Per_Hectare","Method_2_Litres_Per_Hectare","Method_3_Litres_Per_Hectare") ->  | S93: =CHOOSE(MATCH($H93,Control_Method_Tbl[Method Name],0),Method_1_Labour_Equip_Per_Day,Method_2_Labour_Equip_Per_Day,Method_3_Labour_Equip_Per_Day) ->  | T93: 0 | U93: 0 | V93: 0
A94: 1 | B94: =INDEX(Land_Class,A94)&"/"&$G$53 -> Class 1/Steep | D94: =$G$54 -> 0 | E94: 0 | M94: 0 | N94: Steep+ | O94: =CHOOSE(MATCH($H94,Control_Method_Tbl[Method Name],0),"Method_1_Hectares_Per_Day","Method_2_Hectares_Per_Day","Method_3_Hectares_Per_Day") ->  | P94: =CHOOSE(MATCH($H94,Control_Method_Tbl[Method Name],0),"Method_1_Litres_Per_Hectare","Method_2_Litres_Per_Hectare","Method_3_Litres_Per_Hectare") ->  | S94: =CHOOSE(MATCH($H94,Control_Method_Tbl[Method Name],0),Method_1_Labour_Equip_Per_Day,Method_2_Labour_Equip_Per_Day,Method_3_Labour_Equip_Per_Day) ->  | T94: 0 | U94: 0 | V94: 0
A95: 2 | B95: =INDEX(Land_Class,A95)&"/"&$E$53 -> Class 2/Flat | D95: =$E$55 -> 0 | E95: 0 | M95: 0 | N95: Flat+ | O95: =CHOOSE(MATCH($H95,Control_Method_Tbl[Method Name],0),"Method_1_Hectares_Per_Day","Method_2_Hectares_Per_Day","Method_3_Hectares_Per_Day") ->  | P95: =CHOOSE(MATCH($H95,Control_Method_Tbl[Method Name],0),"Method_1_Litres_Per_Hectare","Method_2_Litres_Per_Hectare","Method_3_Litres_Per_Hectare") ->  | S95: =CHOOSE(MATCH($H95,Control_Method_Tbl[Method Name],0),Method_1_Labour_Equip_Per_Day,Method_2_Labour_Equip_Per_Day,Method_3_Labour_Equip_Per_Day) ->  | T95: 0 | U95: 0 | V95: 0
A96: 2 | B96: =INDEX(Land_Class,A96)&"/"&$F$53 -> Class 2/Sloping | D96: =$F$55 -> 0 | E96: 0 | M96: 0 | N96: Sloping+ | O96: =CHOOSE(MATCH($H96,Control_Method_Tbl[Method Name],0),"Method_1_Hectares_Per_Day","Method_2_Hectares_Per_Day","Method_3_Hectares_Per_Day") ->  | P96: =CHOOSE(MATCH($H96,Control_Method_Tbl[Method Name],0),"Method_1_Litres_Per_Hectare","Method_2_Litres_Per_Hectare","Method_3_Litres_Per_Hectare") ->  | S96: =CHOOSE(MATCH($H96,Control_Method_Tbl[Method Name],0),Method_1_Labour_Equip_Per_Day,Method_2_Labour_Equip_Per_Day,Method_3_Labour_Equip_Per_Day) ->  | T96: 0 | U96: 0 | V96: 0
A97: 2 | B97: =INDEX(Land_Class,A97)&"/"&$G$53 -> Class 2/Steep | D97: =$G$55 -> 0 | E97: 0 | M97: 0 | N97: Steep+ | O97: =CHOOSE(MATCH($H97,Control_Method_Tbl[Method Name],0),"Method_1_Hectares_Per_Day","Method_2_Hectares_Per_Day","Method_3_Hectares_Per_Day") ->  | P97: =CHOOSE(MATCH($H97,Control_Method_Tbl[Method Name],0),"Method_1_Litres_Per_Hectare","Method_2_Litres_Per_Hectare","Method_3_Litres_Per_Hectare") ->  | S97: =CHOOSE(MATCH($H97,Control_Method_Tbl[Method Name],0),Method_1_Labour_Equip_Per_Day,Method_2_Labour_Equip_Per_Day,Method_3_Labour_Equip_Per_Day) ->  | T97: 0 | U97: 0 | V97: 0
A98: 3 | B98: =INDEX(Land_Class,A98)&"/"&$E$53 -> Class 3/Flat | D98: =$E$56 -> 0 | E98: 0 | M98: 0 | N98: Flat+ | O98: =CHOOSE(MATCH($H98,Control_Method_Tbl[Method Name],0),"Method_1_Hectares_Per_Day","Method_2_Hectares_Per_Day","Method_3_Hectares_Per_Day") ->  | P98: =CHOOSE(MATCH($H98,Control_Method_Tbl[Method Name],0),"Method_1_Litres_Per_Hectare","Method_2_Litres_Per_Hectare","Method_3_Litres_Per_Hectare") ->  | S98: =CHOOSE(MATCH($H98,Control_Method_Tbl[Method Name],0),Method_1_Labour_Equip_Per_Day,Method_2_Labour_Equip_Per_Day,Method_3_Labour_Equip_Per_Day) ->  | T98: 0 | U98: 0 | V98: 0
A99: 3 | B99: =INDEX(Land_Class,A99)&"/"&$F$53 -> Class 3/Sloping | D99: =$F$56 -> 0 | E99: 0 | M99: 0 | N99: Sloping+ | O99: =CHOOSE(MATCH($H99,Control_Method_Tbl[Method Name],0),"Method_1_Hectares_Per_Day","Method_2_Hectares_Per_Day","Method_3_Hectares_Per_Day") ->  | P99: =CHOOSE(MATCH($H99,Control_Method_Tbl[Method Name],0),"Method_1_Litres_Per_Hectare","Method_2_Litres_Per_Hectare","Method_3_Litres_Per_Hectare") ->  | S99: =CHOOSE(MATCH($H99,Control_Method_Tbl[Method Name],0),Method_1_Labour_Equip_Per_Day,Method_2_Labour_Equip_Per_Day,Method_3_Labour_Equip_Per_Day) ->  | T99: 0 | U99: 0 | V99: 0
A100: 3 | B100: =INDEX(Land_Class,A100)&"/"&$G$53 -> Class 3/Steep | D100: =$G$56 -> 0 | E100: 0 | M100: 0 | N100: Steep+ | O100: =CHOOSE(MATCH($H100,Control_Method_Tbl[Method Name],0),"Method_1_Hectares_Per_Day","Method_2_Hectares_Per_Day","Method_3_Hectares_Per_Day") ->  | P100: =CHOOSE(MATCH($H100,Control_Method_Tbl[Method Name],0),"Method_1_Litres_Per_Hectare","Method_2_Litres_Per_Hectare","Method_3_Litres_Per_Hectare") ->  | S100: =CHOOSE(MATCH($H100,Control_Method_Tbl[Method Name],0),Method_1_Labour_Equip_Per_Day,Method_2_Labour_Equip_Per_Day,Method_3_Labour_Equip_Per_Day) ->  | T100: 0 | U100: 0 | V100: 0
A101: 4 | B101: =INDEX(Land_Class,A101)&"/"&$E$53 -> Class 4/Flat | D101: =$E$57 -> 0 | E101: 0 | M101: 0 | N101: Flat+ | O101: =CHOOSE(MATCH($H101,Control_Method_Tbl[Method Name],0),"Method_1_Hectares_Per_Day","Method_2_Hectares_Per_Day","Method_3_Hectares_Per_Day") ->  | P101: =CHOOSE(MATCH($H101,Control_Method_Tbl[Method Name],0),"Method_1_Litres_Per_Hectare","Method_2_Litres_Per_Hectare","Method_3_Litres_Per_Hectare") ->  | S101: =CHOOSE(MATCH($H101,Control_Method_Tbl[Method Name],0),Method_1_Labour_Equip_Per_Day,Method_2_Labour_Equip_Per_Day,Method_3_Labour_Equip_Per_Day) ->  | T101: 0 | U101: 0 | V101: 0
A102: 4 | B102: =INDEX(Land_Class,A102)&"/"&$F$53 -> Class 4/Sloping | D102: =$F$57 -> 0 | E102: 0 | M102: 0 | N102: Sloping+ | O102: =CHOOSE(MATCH($H102,Control_Method_Tbl[Method Name],0),"Method_1_Hectares_Per_Day","Method_2_Hectares_Per_Day","Method_3_Hectares_Per_Day") ->  | P102: =CHOOSE(MATCH($H102,Control_Method_Tbl[Method Name],0),"Method_1_Litres_Per_Hectare","Method_2_Litres_Per_Hectare","Method_3_Litres_Per_Hectare") ->  | S102: =CHOOSE(MATCH($H102,Control_Method_Tbl[Method Name],0),Method_1_Labour_Equip_Per_Day,Method_2_Labour_Equip_Per_Day,Method_3_Labour_Equip_Per_Day) ->  | T102: 0 | U102: 0 | V102: 0
A103: 4 | B103: =INDEX(Land_Class,A103)&"/"&$G$53 -> Class 4/Steep | D103: =$G$57 -> 0 | E103: 0 | M103: 0 | N103: Steep+ | O103: =CHOOSE(MATCH($H103,Control_Method_Tbl[Method Name],0),"Method_1_Hectares_Per_Day","Method_2_Hectares_Per_Day","Method_3_Hectares_Per_Day") ->  | P103: =CHOOSE(MATCH($H103,Control_Method_Tbl[Method Name],0),"Method_1_Litres_Per_Hectare","Method_2_Litres_Per_Hectare","Method_3_Litres_Per_Hectare") ->  | S103: =CHOOSE(MATCH($H103,Control_Method_Tbl[Method Name],0),Method_1_Labour_Equip_Per_Day,Method_2_Labour_Equip_Per_Day,Method_3_Labour_Equip_Per_Day) ->  | T103: 0 | U103: 0 | V103: 0
B104: TOTAL HECTARES | D104: =SUM(D92:D103) -> 0 | M104: =SUM(M92:M103) -> 0
B107: LINKED TABLE | C107: Index | D107: 1 | E107: 2 | F107: 3 | G107: 4 | H107: 5 | I107: 6 | J107: 7 | K107: 8 | L107: 9 | M107: 10 | N107: 11 | O107: 12
C108: Hectares Affected | D108: =INDEX($M$92:$M$103,D107) -> 0 | E108: 0 | F108: 0 | G108: 0 | H108: 0 | I108: 0 | J108: 0 | K108: 0 | L108: 0 | M108: 0 | N108: 0 | O108: 0
C109: Labour & Equip Cost | D109: =INDEX($T$92:$T$103,D107) -> 0 | E109: =INDEX($T$92:$T$103,E107) -> 0 | F109: 0 | G109: 0 | H109: 0 | I109: 0 | J109: 0 | K109: 0 | L109: 0 | M109: 0 | N109: 0 | O109: 0
C110: Chemical Cost | D110: =INDEX($U$92:$U$103,D107) -> 0 | E110: 0 | F110: 0 | G110: =INDEX($U$92:$U$103,G107) -> 0 | H110: 0 | I110: 0 | J110: 0 | K110: 0 | L110: 0 | M110: 0 | N110: 0 | O110: 0
C111: Total Cost | D111: =INDEX($V$92:$V$103,D107) -> 0 | E111: 0 | F111: 0 | G111: 0 | H111: 0 | I111: 0 | J111: 0 | K111: 0 | L111: 0 | M111: 0 | N111: 0 | O111: 0
C113: Infestation Index | D113: =MATCH(INDEX($F$92:$F$103,D107),Infestation_Intensity_Names,0)-1 -> 
C114: Class Index | D114: =INDEX(Land_Class,INDEX($A$92:$A$103,D107)) -> Class 1 | E114: Class 1 | F114: Class 1 | G114: Class 2 | H114: Class 2 | I114: Class 2 | J114: Class 3 | K114: Class 3 | L114: Class 3 | M114: Class 4 | N114: Class 4 | O114: Class 4
D115: =B92 -> Class 1/Flat | E115: =B93 -> Class 1/Sloping | F115: =B94 -> Class 1/Steep | G115: =B95 -> Class 2/Flat | H115: =B96 -> Class 2/Sloping | I115: =B97 -> Class 2/Steep | J115: =B98 -> Class 3/Flat | K115: =B99 -> Class 3/Sloping | L115: =B100 -> Class 3/Steep | M115: =B101 -> Class 4/Flat | N115: =B102 -> Class 4/Sloping | O115: =B103 -> Class 4/Steep | P115: Total
B116: TREATED HECTARES BY YEAR
C117: Year 1 | D117: =IF(ISNA(D$113),0,D$108*INDEX(Treatment_By_Class_Year_PCT_Area_Tbl,MATCH(D$114&"/"&$C117,Treatment_By_Class_Year_Tag,0),D$113)) -> 0 | E117: 0 | F117: 0 | G117: 0 | H117: 0 | I117: 0 | J117: 0 | K117: 0 | L117: 0 | M117: 0 | N117: 0 | O117: 0
C118: Year 2 | D118: 0 | E118: 0 | F118: 0 | G118: 0 | H118: 0 | I118: 0 | J118: 0 | K118: 0 | L118: 0 | M118: 0 | N118: 0 | O118: 0
C119: Year 3 | D119: 0 | E119: 0 | F119: 0 | G119: 0 | H119: 0 | I119: 0 | J119: 0 | K119: 0 | L119: 0 | M119: 0 | N119: 0 | O119: 0
C120: Year 4 | D120: 0 | E120: 0 | F120: 0 | G120: 0 | H120: 0 | I120: 0 | J120: 0 | K120: 0 | L120: 0 | M120: 0 | N120: 0 | O120: 0
C121: Year 5 | D121: 0 | E121: 0 | F121: 0 | G121: 0 | H121: 0 | I121: 0 | J121: 0 | K121: 0 | L121: 0 | M121: 0 | N121: 0 | O121: 0
B123: PRIMARY COST BY YEAR
C124: Year 1 | D124: =D117*D$111 -> 0 | E124: =E117*E$111 -> 0 | F124: 0 | G124: 0 | H124: 0 | I124: 0 | J124: 0 | K124: 0 | L124: 0 | M124: 0 | N124: 0 | O124: 0 | P124: =SUM(D124:O124) -> 0
C125: Year 2 | D125: =D118*D$111 -> 0 | E125: 0 | F125: 0 | G125: 0 | H125: 0 | I125: 0 | J125: 0 | K125: 0 | L125: 0 | M125: 0 | N125: 0 | O125: 0 | P125: =SUM(D125:O125) -> 0
C126: Year 3 | D126: =D119*D$111 -> 0 | E126: 0 | F126: 0 | G126: 0 | H126: 0 | I126: 0 | J126: 0 | K126: 0 | L126: 0 | M126: 0 | N126: 0 | O126: 0 | P126: 0
C127: Year 4 | D127: =D120*D$111 -> 0 | E127: 0 | F127: 0 | G127: 0 | H127: 0 | I127: 0 | J127: 0 | K127: 0 | L127: 0 | M127: 0 | N127: 0 | O127: 0 | P127: 0
C128: Year 5 | D128: =D121*D$111 -> 0 | E128: 0 | F128: 0 | G128: 0 | H128: 0 | I128: 0 | J128: 0 | K128: 0 | L128: 0 | M128: 0 | N128: 0 | O128: 0 | P128: 0
B130: HECTARES NEEDING MAINTENANCE BY YEAR
B131: 0 | C131: Year 1 | D131: =IF($B131=0,0,SUM(OFFSET(D$117:D$121,0,0,B$140))) -> 0 | E131: 0 | F131: 0 | G131: 0 | H131: 0 | I131: 0 | J131: 0 | K131: 0 | L131: 0 | M131: 0 | N131: 0 | O131: 0
B132: 1 | C132: Year 2 | D132: =IF($B132=0,0,SUM(OFFSET(D$117:D$121,0,0,$B132))) -> 0 | E132: 0 | F132: 0 | G132: 0 | H132: 0 | I132: 0 | J132: 0 | K132: 0 | L132: 0 | M132: 0 | N132: 0 | O132: 0
B133: 2 | C133: Year 3 | D133: 0 | E133: 0 | F133: 0 | G133: 0 | H133: 0 | I133: 0 | J133: 0 | K133: 0 | L133: 0 | M133: 0 | N133: 0 | O133: 0
B134: 3 | C134: Year 4 | D134: 0 | E134: 0 | F134: 0 | G134: 0 | H134: 0 | I134: 0 | J134: 0 | K134: 0 | L134: 0 | M134: 0 | N134: 0 | O134: 0
B135: 4 | C135: Year 5 | D135: 0 | E135: 0 | F135: 0 | G135: 0 | H135: 0 | I135: 0 | J135: 0 | K135: 0 | L135: 0 | M135: 0 | N135: 0 | O135: 0
B136: 5 | C136: Year 6 | D136: 0 | E136: 0 | F136: 0 | G136: 0 | H136: 0 | I136: 0 | J136: 0 | K136: 0 | L136: 0 | M136: 0 | N136: 0 | O136: 0
B138: MAINTENANCE COST BY YEAR
B139: 0 | C139: Year 1 | D139: =IF(ISNA(D$113),0,D131*INDEX(Treatment_By_Class_Year_PCT_Cost_Tbl,MATCH(D$114&"/"&$C139,Treatment_By_Class_Year_Tag,0),D$113)*D$111) -> 0 | E139: 0 | F139: 0 | G139: 0 | H139: 0 | I139: 0 | J139: 0 | K139: 0 | L139: 0 | M139: 0 | N139: 0 | O139: 0 | P139: =SUM(D139:O139) -> 0
B140: 1 | C140: Year 2 | D140: =IF(ISNA(D$113),0,D132*INDEX(Treatment_By_Class_Year_PCT_Cost_Tbl,MATCH(D$114&"/"&$C140,Treatment_By_Class_Year_Tag,0),D$113)*D$111) -> 0 | E140: 0 | F140: 0 | G140: 0 | H140: 0 | I140: 0 | J140: 0 | K140: 0 | L140: 0 | M140: 0 | N140: 0 | O140: 0 | P140: =SUM(D140:O140) -> 0
B141: 2 | C141: Year 3 | D141: =IF(ISNA(D$113),0,D133*INDEX(Treatment_By_Class_Year_PCT_Cost_Tbl,MATCH(D$114&"/"&$C141,Treatment_By_Class_Year_Tag,0),D$113)*D$111) -> 0 | E141: 0 | F141: 0 | G141: 0 | H141: 0 | I141: 0 | J141: 0 | K141: 0 | L141: 0 | M141: 0 | N141: 0 | O141: 0 | P141: =SUM(D141:O141) -> 0
B142: 3 | C142: Year 4 | D142: =IF(ISNA(D$113),0,D134*INDEX(Treatment_By_Class_Year_PCT_Cost_Tbl,MATCH(D$114&"/"&$C142,Treatment_By_Class_Year_Tag,0),D$113)*D$111) -> 0 | E142: 0 | F142: 0 | G142: 0 | H142: 0 | I142: 0 | J142: 0 | K142: 0 | L142: 0 | M142: 0 | N142: 0 | O142: 0 | P142: 0
B143: 4 | C143: Year 5 | D143: =IF(ISNA(D$113),0,D135*INDEX(Treatment_By_Class_Year_PCT_Cost_Tbl,MATCH(D$114&"/"&$C143,Treatment_By_Class_Year_Tag,0),D$113)*D$111) -> 0 | E143: 0 | F143: 0 | G143: 0 | H143: 0 | I143: 0 | J143: 0 | K143: 0 | L143: 0 | M143: 0 | N143: 0 | O143: 0 | P143: 0
B144: 5 | C144: Year 6 | D144: =IF(ISNA(D$113),0,D136*INDEX(Treatment_By_Class_Year_PCT_Cost_Tbl,MATCH(D$114&"/"&$C144,Treatment_By_Class_Year_Tag,0),D$113)*D$111) -> 0 | E144: 0 | F144: 0 | G144: 0 | H144: 0 | I144: 0 | J144: 0 | K144: 0 | L144: 0 | M144: 0 | N144: 0 | O144: 0 | P144: 0
C145: TEST: % for Maintenance
B146: 0 | C146: Year 1 | D146: =IF($B146=0,0,INDEX(Treatment_By_Class_Year_PCT_Cost_Tbl,MATCH(D$114&"/"&$C146,Treatment_By_Class_Year_Tag,0),D$113)) -> 0 | E146: 0 | F146: 0 | G146: 0 | H146: 0 | I146: 0 | J146: 0 | K146: 0 | L146: 0 | M146: 0 | N146: 0 | O146: 0
B147: 1 | C147: Year 2
B148: 2 | C148: Year 3
B149: 3 | C149: Year 4
B150: 4 | C150: Year 5
B151: 5 | C151: Year 6
B153: TOTAL COST BY YEAR
B154: 0 | C154: Year 1 | D154: =SUM(D124,D139) -> 0 | E154: 0 | F154: 0 | G154: 0 | H154: 0 | I154: 0 | J154: 0 | K154: 0 | L154: 0 | M154: 0 | N154: 0 | O154: 0 | P154: =SUM(D154:O154) -> 0
B155: 1 | C155: Year 2 | D155: =SUM(D125,D140) -> 0 | E155: 0 | F155: 0 | G155: 0 | H155: 0 | I155: 0 | J155: 0 | K155: 0 | L155: 0 | M155: 0 | N155: 0 | O155: 0 | P155: =SUM(D155:O155) -> 0
B156: 2 | C156: Year 3 | D156: =SUM(D126,D141) -> 0 | E156: 0 | F156: 0 | G156: 0 | H156: 0 | I156: 0 | J156: 0 | K156: 0 | L156: 0 | M156: 0 | N156: 0 | O156: 0 | P156: 0
B157: 3 | C157: Year 4 | D157: =SUM(D127,D142) -> 0 | E157: 0 | F157: 0 | G157: 0 | H157: 0 | I157: 0 | J157: 0 | K157: 0 | L157: 0 | M157: 0 | N157: 0 | O157: 0 | P157: 0
B158: 4 | C158: Year 5 | D158: =SUM(D128,D143) -> 0 | E158: 0 | F158: 0 | G158: 0 | H158: 0 | I158: 0 | J158: 0 | K158: 0 | L158: 0 | M158: 0 | N158: 0 | O158: 0 | P158: 0
B159: 5 | C159: Year 6 | D159: =SUM(D129,D144) -> 0 | E159: 0 | F159: 0 | G159: 0 | H159: 0 | I159: 0 | J159: 0 | K159: 0 | L159: 0 | M159: 0 | N159: 0 | O159: 0 | P159: 0
P160: =SUM(P154:P159) -> 0
A162: << PREVIOUS | O162: NEXT >>

Sheet 3. Control Methods
A1: << PREVIOUS | L1: Version: | M1: =Settings!App_Version -> V1.0f2c
B3: ="Victorian Blackberry Taskforce - "&Settings!App_Name -> Victorian Blackberry Taskforce - Blackberry Weed Management - Agricultural Productivity Model
B5: =Introduction!B24 -> A 'cost benefit' analysis tool for a livestock grazing operation, specific to chemical control costs and projected productivity benefit
B8: 4.0 Labour and Equipment Costs by Control Method | Q8: Costs by Control Method | AA8: Control Method Details & Costs
AB9: Currently Only 1st Column Used!!!!
C10: 1 | D10: =INDEX(Control_Method_Tbl[Method Name],C10) -> Ground | R10: 4 | S10: Blackberry Control Method Data | AB10: Method Name | AC10: Method Description | AD10: Base Hectares/Day | AE10: Cost/Day
AB11: Ground | AD11: 10 | AE11: 1400
C12: (a) Labour & Plant Hire Cost | R12: 4.1 - Chemical Control Inputs | T12: Ground Based Application (Method 1) | AB12: Aerial - Broadacre | AD12: 300 | AE12: =AL34 -> 0
V13: Multiplier Rates | AB13: Aerial - Spot Spray | AD13: 250 | AE13: 25000
C14: The model assumes the application of 2 x labour units:
C15: Hours worked per day per labour unit: | F15: 8 | G15: hours | R15: (a) Estimated Mixed Product Use Matrix (litres per day) | U15: =INDEX(Infestation_Intensity_Treatment_Multiplier,MATCH($U$19,Infestation_Intensity_Names,0)) -> 1 | V15: =INDEX(Infestation_Intensity_Treatment_Multiplier,MATCH($V$19,Infestation_Intensity_Names,0)) -> 2 | W15: =INDEX(Infestation_Intensity_Treatment_Multiplier,MATCH($W$19,Infestation_Intensity_Names,0)) -> 3
C16: Total hours worked per day: | F16: =F15*2 -> 16 | G16: hours
C18: Cost per labour unit - per hour | F18: 60 | G18: per hour | V18: Infestation Intensity
U19: Minor | V19: Moderate | W19: Heavy
C20: Includes: | E20: Spray vehicle | F20: 2 | R20: Flat | S20: Good | T20: =R20&"+"&S20 -> Flat+Good | U20: 1000 | V20: =$U20*V$15 -> 2000 | W20: 3000
E21: Labour units | F21: 1 | R21: Flat | S21: Fair | T21: Flat+Fair | U21: 900 | V21: 1800 | W21: 2700
R22: Flat | S22: Difficult | T22: Flat+Difficult | U22: 600 | V22: 1200 | W22: 1800
C23: Total Daily Cost: | E23: =F16*F18 -> 960 | F23: per day | G23: (includes 2 x labour units and 1 x fully equipped, fit for purpose spray rig vehicle) | R23: Sloping | S23: Good | T23: Sloping+Good | U23: 900 | V23: 1800 | W23: 2700
R24: Sloping | S24: Fair | T24: Sloping+Fair | U24: 800 | V24: 1600 | W24: 2400
C25: 2 | D25: =INDEX(Control_Method_Tbl[Method Name],C25) -> Aerial - Broadacre | R25: Sloping | S25: Difficult | T25: Sloping+Difficult | U25: 500 | V25: 1000 | W25: 1500
R26: Steep | S26: Good | T26: Steep+Good | U26: 800 | V26: 1600 | W26: 2400
C27: Helicopter cost per hour: | F27: 2500 | I27: VBT suggested input | R27: Steep | S27: Fair | T27: Steep+Fair | U27: 700 | V27: 1400 | W27: 2100
C28: Loads completed per hour: | F28: 4 | I28: per load numbers | R28: Steep | S28: Difficult | T28: Steep+Difficult | U28: 500 | V28: 1000 | W28: 1500
C29: Area covered per Load: | F29: 3 | G29: hectares | I29: need to factor in:
C30: Litres per Load: | F30: 300 | G30: litres | I30: ferry time, unless combined with other nearby users | V30: Discount Rates
C31: Area covered per hour: | F31: =F28*F29 -> 12 | G31: hectares | R31: (b) Estimated Area Treated (hectares per 10 hour day) | U31: =1/INDEX(Infestation_Intensity_Labour_Multiplier,MATCH(U$33,Infestation_Intensity_Names,0)) -> 1 | V31: =1/INDEX(Infestation_Intensity_Labour_Multiplier,MATCH(V$33,Infestation_Intensity_Names,0)) -> 0.5 | W31: =1/INDEX(Infestation_Intensity_Labour_Multiplier,MATCH(W$33,Infestation_Intensity_Names,0)) -> 0.25
C32: Mixed Product used per hour: | F32: =F30*F28 -> 1200 | G32: litres | V32: Infestation Intensity
R33: Terrain | S33: Access | T33: Tag | U33: Minor | V33: Moderate | W33: Heavy
C34: Total Daily Cost: | E34: =F27*F15 -> 20000 | F34: per day | G34: (10 hrs) | R34: Flat | S34: Good | T34: =R34&"+"&S34 -> Flat+Good | U34: 40 | V34: =U34*$V$31 -> 20 | W34: =U34*$W$31 -> 10
R35: Flat | S35: Fair | T35: Flat+Fair | U35: 35 | V35: 17.5 | W35: 8.75
C36: 3 | D36: =INDEX(Control_Method_Tbl[Method Name],C36) -> Aerial - Spot Spray | R36: Flat | S36: Difficult | T36: Flat+Difficult | U36: 30 | V36: 15 | W36: 7.5
R37: Sloping | S37: Good | T37: Sloping+Good | U37: 25 | V37: 12.5 | W37: 6.25
C38: Helicopter cost per hour: | F38: 2500 | I38: Please note that the use of aerial spray techniques for the purposes of controlling blackberry may result in some non-target vegetation being adversely impacted, ie collateral damage. Caution should be applied with this method of application and the relevant approvals sought as necessary. | R38: Sloping | S38: Fair | T38: Sloping+Fair | U38: 20 | V38: 10 | W38: 5
C39: Loads completed per hour: | F39: 2 | R39: Sloping | S39: Difficult | T39: Sloping+Difficult | U39: 15 | V39: 7.5 | W39: 3.75
C40: Area covered per Load: | F40: 5 | G40: hectares | R40: Steep | S40: Good | T40: Steep+Good | U40: 15 | V40: 7.5 | W40: 3.75
C41: Litres per Load: | F41: 300 | G41: litres | R41: Steep | S41: Fair | T41: Steep+Fair | U41: 10 | V41: 5 | W41: 2.5
C42: Area covered per hour: | F42: =F39*F40 -> 10 | G42: hectares | R42: Steep | S42: Difficult | T42: Steep+Difficult | U42: 8 | V42: 4 | W42: 2
C43: Mixed Product used per hour: | F43: =F41*F39 -> 600 | G43: litres
C45: Total Daily Cost: | E45: =F38*F15 -> 20000 | F45: per day | R45: (c ) Estimated Mixed Product Use Matrix (litres per hectare)
V46: Infestation Intensity
R47: Terrain | S47: Access | T47: Tag | U47: Minor | V47: Moderate | W47: Heavy
R48: Flat | S48: Good | T48: =R48&"+"&S48 -> Flat+Good | U48: =U20/U34 -> 25 | V48: 100 | W48: 300
R49: Flat | S49: Fair | T49: Flat+Fair | U49: 25.71428571 | V49: 102.8571429 | W49: 308.5714286
A50: << PREVIOUS | L50: NEXT >> | R50: Flat | S50: Difficult | T50: Flat+Difficult | U50: 20 | V50: 80 | W50: 240
R51: Sloping | S51: Good | T51: Sloping+Good | U51: 36 | V51: 144 | W51: 432
R52: Sloping | S52: Fair | T52: Sloping+Fair | U52: 40 | V52: 160 | W52: 480
R53: Sloping | S53: Difficult | T53: Sloping+Difficult | U53: 33.33333333 | V53: 133.3333333 | W53: 400
R54: Steep | S54: Good | T54: Steep+Good | U54: 53.33333333 | V54: 213.3333333 | W54: 640
R55: Steep | S55: Fair | T55: Steep+Fair | U55: 70 | V55: 280 | W55: 840
R56: Steep | S56: Difficult | T56: Steep+Difficult | U56: 62.5 | V56: 250 | W56: 750
R59: 3.2 - Chemical Control Inputs | T59: Aerial Application - Broadacre
V60: Multiplier Rates
R61: (a) Estimated Mixed Product Use Matrix (litres per hour) | U61: =INDEX(Infestation_Intensity_Treatment_Multiplier,MATCH($U$19,Infestation_Intensity_Names,0)) -> 1 | V61: 1 | W61: 1
V62: Infestation Intensity
R63: Terrain | S63: Access | T63: Tag | U63: Minor | V63: Moderate | W63: Heavy
R64: Flat | S64: Good | T64: =R64&"+"&S64 -> Flat+Good | U64: 1200 | V64: =$U64*V$61 -> 1200 | W64: =$U64*W$61 -> 1200
R65: Flat | S65: Fair | T65: Flat+Fair | U65: 1200 | V65: =$U65*V$61 -> 1200 | W65: 1200
R66: Flat | S66: Difficult | T66: Flat+Difficult | U66: 1200 | V66: 1200 | W66: 1200
R67: Sloping | S67: Good | T67: Sloping+Good | U67: 1200 | V67: 1200 | W67: 1200
R68: Sloping | S68: Fair | T68: Sloping+Fair | U68: 1200 | V68: 1200 | W68: 1200
R69: Sloping | S69: Difficult | T69: Sloping+Difficult | U69: 1200 | V69: 1200 | W69: 1200
R70: Steep | S70: Good | T70: Steep+Good | U70: 1200 | V70: 1200 | W70: 1200
R71: Steep | S71: Fair | T71: Steep+Fair | U71: 1200 | V71: 1200 | W71: 1200
R72: Steep | S72: Difficult | T72: Steep+Difficult | U72: 1200 | V72: =$U72*V$61 -> 1200 | W72: =$U72*W$61 -> 1200
V74: Discount Rates
R75: (b) Estimated Area Treated (hectares per hour) | V75: =1/INDEX(Infestation_Intensity_Labour_Multiplier,MATCH(V$33,Infestation_Intensity_Names,0)) -> 0.5 | W75: =1/INDEX(Infestation_Intensity_Labour_Multiplier,MATCH(W$33,Infestation_Intensity_Names,0)) -> 0.25
V76: Infestation Intensity
R77: Terrain | S77: Access | T77: Tag | U77: Minor | V77: Moderate | W77: Heavy
R78: Flat | S78: Good | T78: =R78&"+"&S78 -> Flat+Good | U78: 12 | V78: =U78*$V$75 -> 6 | W78: =U78*$W$75 -> 3
R79: Flat | S79: Fair | T79: Flat+Fair | U79: 12 | V79: =U79*$V$75 -> 6 | W79: =U79*$W$75 -> 3
R80: Flat | S80: Difficult | T80: Flat+Difficult | U80: 12 | V80: 6 | W80: 3
R81: Sloping | S81: Good | T81: Sloping+Good | U81: 12 | V81: 6 | W81: 3
R82: Sloping | S82: Fair | T82: Sloping+Fair | U82: 12 | V82: 6 | W82: 3
R83: Sloping | S83: Difficult | T83: Sloping+Difficult | U83: 12 | V83: 6 | W83: 3
R84: Steep | S84: Good | T84: Steep+Good | U84: 12 | V84: 6 | W84: 3
R85: Steep | S85: Fair | T85: Steep+Fair | U85: 12 | V85: 6 | W85: 3
R86: Steep | S86: Difficult | T86: Steep+Difficult | U86: 12 | V86: 6 | W86: 3
R89: (c ) Estimated Mixed Product Use Matrix (litres per hectare)
V90: Infestation Intensity
R91: Terrain | S91: Access | T91: Tag | U91: Minor | V91: Moderate | W91: Heavy
R92: Flat | S92: Good | T92: =R92&"+"&S92 -> Flat+Good | U92: =U64/U78 -> 100 | V92: 200 | W92: 400
R93: Flat | S93: Fair | T93: Flat+Fair | U93: =U65/U79 -> 100 | V93: 200 | W93: 400
R94: Flat | S94: Difficult | T94: Flat+Difficult | U94: =U66/U80 -> 100 | V94: 200 | W94: 400
R95: Sloping | S95: Good | T95: Sloping+Good | U95: =U67/U81 -> 100 | V95: 200 | W95: 400
R96: Sloping | S96: Fair | T96: Sloping+Fair | U96: =U68/U82 -> 100 | V96: 200 | W96: 400
R97: Sloping | S97: Difficult | T97: Sloping+Difficult | U97: =U69/U83 -> 100 | V97: 200 | W97: 400
R98: Steep | S98: Good | T98: Steep+Good | U98: =U70/U84 -> 100 | V98: 200 | W98: 400
R99: Steep | S99: Fair | T99: Steep+Fair | U99: =U71/U85 -> 100 | V99: 200 | W99: 400
R100: Steep | S100: Difficult | T100: Steep+Difficult | U100: =U72/U86 -> 100 | V100: 200 | W100: =W72/W86 -> 400
R104: 3.3 - Chemical Control Inputs | T104: Aerial Application - Spot Spray
V105: Multiplier Rates
R106: (a) Estimated Mixed Product Use Matrix (litres per hour) | U106: =INDEX(Infestation_Intensity_Treatment_Multiplier,MATCH($U$19,Infestation_Intensity_Names,0)) -> 1 | V106: 1 | W106: 1
V107: Infestation Intensity | AB107: 1.2
R108: Terrain | S108: Access | T108: Tag | U108: Minor | V108: Moderate | W108: Heavy
R109: Flat | S109: Good | T109: =R109&"+"&S109 -> Flat+Good | U109: 600 | V109: =$U109*V$61 -> 600 | W109: 600
R110: Flat | S110: Fair | T110: Flat+Fair | U110: 600 | V110: 600 | W110: 600
R111: Flat | S111: Difficult | T111: Flat+Difficult | U111: 600 | V111: 600 | W111: 600
R112: Sloping | S112: Good | T112: Sloping+Good | U112: 600 | V112: 600 | W112: 600
R113: Sloping | S113: Fair | T113: Sloping+Fair | U113: 600 | V113: 600 | W113: 600
R114: Sloping | S114: Difficult | T114: Sloping+Difficult | U114: 600 | V114: 600 | W114: 600
R115: Steep | S115: Good | T115: Steep+Good | U115: 600 | V115: 600 | W115: 600
R116: Steep | S116: Fair | T116: Steep+Fair | U116: 600 | V116: 600 | W116: 600
R117: Steep | S117: Difficult | T117: Steep+Difficult | U117: 600 | V117: =$U117*V$61 -> 600 | W117: =$U117*W$61 -> 600
V119: Discount Rates
R120: (b) Estimated Area Treated (hectares per hour) | V120: =1/INDEX(Infestation_Intensity_Labour_Multiplier,MATCH(V$33,Infestation_Intensity_Names,0)) -> 0.5 | W120: =1/INDEX(Infestation_Intensity_Labour_Multiplier,MATCH(W$33,Infestation_Intensity_Names,0)) -> 0.25
V121: Infestation Intensity
R122: Terrain | S122: Access | T122: Tag | U122: Minor | V122: Moderate | W122: Heavy
R123: Flat | S123: Good | T123: =R123&"+"&S123 -> Flat+Good | U123: 10 | V123: =U123*$V$75 -> 5 | W123: =U123*$W$75 -> 2.5
R124: Flat | S124: Fair | T124: Flat+Fair | U124: 10 | V124: =U124*$V$75 -> 5 | W124: =U124*$W$75 -> 2.5
R125: Flat | S125: Difficult | T125: Flat+Difficult | U125: 10 | V125: 5 | W125: 2.5
R126: Sloping | S126: Good | T126: Sloping+Good | U126: 10 | V126: 5 | W126: 2.5
R127: Sloping | S127: Fair | T127: Sloping+Fair | U127: 10 | V127: 5 | W127: 2.5
R128: Sloping | S128: Difficult | T128: Sloping+Difficult | U128: 10 | V128: 5 | W128: 2.5
R129: Steep | S129: Good | T129: Steep+Good | U129: 10 | V129: 5 | W129: 2.5
R130: Steep | S130: Fair | T130: Steep+Fair | U130: 10 | V130: 5 | W130: 2.5
R131: Steep | S131: Difficult | T131: Steep+Difficult | U131: 10 | V131: 5 | W131: 2.5
R134: (c ) Estimated Mixed Product Use Matrix (litres per hectare)
V135: Infestation Intensity
R136: Terrain | S136: Access | T136: Tag | U136: Minor | V136: Moderate | W136: Heavy
R137: Flat | S137: Good | T137: =R137&"+"&S137 -> Flat+Good | U137: =U109/U123 -> 60 | V137: 120 | W137: 240
R138: Flat | S138: Fair | T138: Flat+Fair | U138: =U110/U124 -> 60 | V138: =V110/V124 -> 120 | W138: 240
R139: Flat | S139: Difficult | T139: Flat+Difficult | U139: =U111/U125 -> 60 | V139: =V111/V125 -> 120 | W139: 240
R140: Sloping | S140: Good | T140: Sloping+Good | U140: =U112/U126 -> 60 | V140: 120 | W140: 240
R141: Sloping | S141: Fair | T141: Sloping+Fair | U141: =U113/U127 -> 60 | V141: 120 | W141: 240
R142: Sloping | S142: Difficult | T142: Sloping+Difficult | U142: =U114/U128 -> 60 | V142: 120 | W142: 240
R143: Steep | S143: Good | T143: Steep+Good | U143: =U115/U129 -> 60 | V143: 120 | W143: 240
R144: Steep | S144: Fair | T144: Steep+Fair | U144: =U116/U130 -> 60 | V144: 120 | W144: 240
R145: Steep | S145: Difficult | T145: Steep+Difficult | U145: =U117/U131 -> 60 | V145: 120 | W145: =W117/W131 -> 240

Sheet Treatment Regimes
A1: << PREVIOUS | M1: NEXT >>
B2: 6 | C2: Rural Management Assumptions and Metrics
B4: 6.1 Treatment Regimes - Proportion of Affected Land Actively Treated per annum
B6: 6.1.1 Aggressive
H7: Initial Treatment Area as % of Infested By Year | L7: Yearly Treatment as % of Initial Cost
B8: Land Classification | C8: Year | D8: Tag | E8: % DSE Uplift | G8: ='Reference Data'!R4 -> Minor | H8: ='Reference Data'!S4 -> Moderate | I8: ='Reference Data'!T4 -> Heavy | K8: ='Reference Data'!V4 -> Minor | L8: ='Reference Data'!W4 -> Moderate | M8: ='Reference Data'!X4 -> Heavy
A9: 1 | B9: ='Reference Data'!M5 -> Class 1 | C9: ='Reference Data'!N5 -> Year 1 | D9: ='Reference Data'!O5 -> Class 1/Year 1 | E9: 0.25 | G9: 1 | H9: 1 | I9: 1 | K9: 1 | L9: 1 | M9: 1
A10: 2 | B10: ='Reference Data'!M6 -> Class 2 | C10: ='Reference Data'!N6 -> Year 1 | D10: ='Reference Data'!O6 -> Class 2/Year 1 | E10: 0.25 | G10: 1 | H10: 1 | I10: 1 | K10: 1 | L10: 1 | M10: 1
A11: 3 | B11: ='Reference Data'!M7 -> Class 3 | C11: ='Reference Data'!N7 -> Year 1 | D11: ='Reference Data'!O7 -> Class 3/Year 1 | E11: 0.25 | G11: 1 | H11: 1 | I11: 1 | K11: 1 | L11: 1 | M11: 1
A12: 4 | B12: ='Reference Data'!M8 -> Class 4 | C12: ='Reference Data'!N8 -> Year 1 | D12: ='Reference Data'!O8 -> Class 4/Year 1 | E12: 0.25 | G12: 1 | H12: 1 | I12: 1 | K12: 1 | L12: 1 | M12: 1
A13: 1 | B13: ='Reference Data'!M9 -> Class 1 | C13: ='Reference Data'!N9 -> Year 2 | D13: ='Reference Data'!O9 -> Class 1/Year 2 | E13: 0.6 | G13: 0 | H13: 0 | I13: 0 | K13: 0.1 | L13: 0.2 | M13: 0.3
A14: 2 | B14: ='Reference Data'!M10 -> Class 2 | C14: ='Reference Data'!N10 -> Year 2 | D14: ='Reference Data'!O10 -> Class 2/Year 2 | E14: 0.6 | G14: 0 | H14: 0 | I14: 0 | K14: 0.1 | L14: 0.2 | M14: 0.3
A15: 3 | B15: ='Reference Data'!M11 -> Class 3 | C15: ='Reference Data'!N11 -> Year 2 | D15: ='Reference Data'!O11 -> Class 3/Year 2 | E15: 0.6 | G15: 0 | H15: 0 | I15: 0 | K15: 0.1 | L15: 0.2 | M15: 0.3
A16: 4 | B16: ='Reference Data'!M12 -> Class 4 | C16: ='Reference Data'!N12 -> Year 2 | D16: ='Reference Data'!O12 -> Class 4/Year 2 | E16: 0.6 | G16: 0 | H16: 0 | I16: 0 | K16: 0.1 | L16: 0.2 | M16: 0.3
A17: 1 | B17: ='Reference Data'!M13 -> Class 1 | C17: ='Reference Data'!N13 -> Year 3 | D17: ='Reference Data'!O13 -> Class 1/Year 3 | E17: 0.9 | G17: 0 | H17: 0 | I17: 0 | K17: 0.05 | L17: 0.1 | M17: 0.2
A18: 2 | B18: ='Reference Data'!M14 -> Class 2 | C18: ='Reference Data'!N14 -> Year 3 | D18: ='Reference Data'!O14 -> Class 2/Year 3 | E18: 0.9 | G18: 0 | H18: 0 | I18: 0 | K18: 0.05 | L18: 0.1 | M18: 0.2
A19: 3 | B19: ='Reference Data'!M15 -> Class 3 | C19: ='Reference Data'!N15 -> Year 3 | D19: ='Reference Data'!O15 -> Class 3/Year 3 | E19: 0.9 | G19: 0 | H19: 0 | I19: 0 | K19: 0.05 | L19: 0.1 | M19: 0.2
A20: 4 | B20: ='Reference Data'!M16 -> Class 4 | C20: ='Reference Data'!N16 -> Year 3 | D20: ='Reference Data'!O16 -> Class 4/Year 3 | E20: 0.9 | G20: 0 | H20: 0 | I20: 0 | K20: 0.05 | L20: 0.1 | M20: 0.2
A21: 1 | B21: ='Reference Data'!M17 -> Class 1 | C21: ='Reference Data'!N17 -> Year 4 | D21: ='Reference Data'!O17 -> Class 1/Year 4 | E21: 1 | G21: 0 | H21: 0 | I21: 0 | K21: 0.01 | L21: 0.05 | M21: 0.05
A22: 2 | B22: ='Reference Data'!M18 -> Class 2 | C22: ='Reference Data'!N18 -> Year 4 | D22: ='Reference Data'!O18 -> Class 2/Year 4 | E22: 1 | G22: 0 | H22: 0 | I22: 0 | K22: 0.01 | L22: 0.05 | M22: 0.05
A23: 3 | B23: ='Reference Data'!M19 -> Class 3 | C23: ='Reference Data'!N19 -> Year 4 | D23: ='Reference Data'!O19 -> Class 3/Year 4 | E23: 1 | G23: 0 | H23: 0 | I23: 0 | K23: 0.01 | L23: 0.05 | M23: 0.05
A24: 4 | B24: ='Reference Data'!M20 -> Class 4 | C24: ='Reference Data'!N20 -> Year 4 | D24: ='Reference Data'!O20 -> Class 4/Year 4 | E24: 1 | G24: 0 | H24: 0 | I24: 0 | K24: 0.01 | L24: 0.05 | M24: 0.05
A25: 1 | B25: ='Reference Data'!M21 -> Class 1 | C25: ='Reference Data'!N21 -> Year 5 | D25: ='Reference Data'!O21 -> Class 1/Year 5 | E25: 1 | G25: 0 | H25: 0 | I25: 0 | K25: 0.01 | L25: 0.03 | M25: 0.03
A26: 2 | B26: ='Reference Data'!M22 -> Class 2 | C26: ='Reference Data'!N22 -> Year 5 | D26: ='Reference Data'!O22 -> Class 2/Year 5 | E26: 1 | G26: 0 | H26: 0 | I26: 0 | K26: 0.01 | L26: 0.03 | M26: 0.03
A27: 3 | B27: ='Reference Data'!M23 -> Class 3 | C27: ='Reference Data'!N23 -> Year 5 | D27: ='Reference Data'!O23 -> Class 3/Year 5 | E27: 1 | G27: 0 | H27: 0 | I27: 0 | K27: 0.01 | L27: 0.03 | M27: 0.03
A28: 4 | B28: ='Reference Data'!M24 -> Class 4 | C28: ='Reference Data'!N24 -> Year 5 | D28: ='Reference Data'!O24 -> Class 4/Year 5 | E28: 1 | G28: 0 | H28: 0 | I28: 0 | K28: 0.01 | L28: 0.03 | M28: 0.03
A29: 1 | B29: ='Reference Data'!M25 -> Class 1 | C29: ='Reference Data'!N25 -> Year 6 | D29: ='Reference Data'!O25 -> Class 1/Year 6 | E29: 1 | G29: 0 | H29: 0 | I29: 0 | K29: 0.01 | L29: 0.03 | M29: 0.03
A30: 2 | B30: ='Reference Data'!M26 -> Class 2 | C30: ='Reference Data'!N26 -> Year 6 | D30: ='Reference Data'!O26 -> Class 2/Year 6 | E30: 1 | G30: 0 | H30: 0 | I30: 0 | K30: 0.01 | L30: 0.03 | M30: 0.03
A31: 3 | B31: ='Reference Data'!M27 -> Class 3 | C31: ='Reference Data'!N27 -> Year 6 | D31: ='Reference Data'!O27 -> Class 3/Year 6 | E31: 1 | G31: 0 | H31: 0 | I31: 0 | K31: 0.01 | L31: 0.03 | M31: 0.03
A32: 4 | B32: ='Reference Data'!M28 -> Class 4 | C32: ='Reference Data'!N28 -> Year 6 | D32: ='Reference Data'!O28 -> Class 4/Year 6 | E32: 1 | G32: 0 | H32: 0 | I32: 0 | K32: 0.01 | L32: 0.03 | M32: 0.03
F34: CHECK TOTALS =>> | G34: =SUM(G9,G13,G17,G21,G25,G29) -> 1 | H34: =SUM(H9,H13,H17,H21,H25,H29) -> 1 | I34: =SUM(I9,I13,I17,I21,I25,I29) -> 1
F35: All should be 100%!! | G35: 1 | H35: 1 | I35: 1
G36: 1 | H36: 1 | I36: 1
G37: 1 | H37: 1 | I37: =SUM(I12,I16,I20,I24,I28,I32) -> 1
B39: 6.1.2 Active
H40: Initial Treatment Area as % of Infested By Year | L40: Yearly Treatment as % of Initial Cost
B41: Land Classification | C41: Year | D41: Tag | E41: =E8 -> % DSE Uplift | G41: Minor | H41: Moderate | I41: Heavy | K41: Minor | L41: Moderate | M41: Heavy
A42: 1 | B42: =B9 -> Class 1 | C42: Year 1 | D42: Class 1/Year 1 | E42: 0.15 | G42: 1 | H42: 1 | I42: 1 | K42: 1 | L42: 1 | M42: 1
A43: 2 | B43: Class 2 | C43: Year 1 | D43: Class 2/Year 1 | E43: 0.15 | G43: 1 | H43: 1 | I43: 1 | K43: 1 | L43: 1 | M43: 1
A44: 3 | B44: Class 3 | C44: Year 1 | D44: Class 3/Year 1 | E44: 0.05 | G44: 0.5 | H44: 0.4 | I44: 0.3 | K44: 0.5 | L44: 0.4 | M44: 0.3
A45: 4 | B45: Class 4 | C45: Year 1 | D45: Class 4/Year 1 | E45: 0.05 | G45: 0.5 | H45: 0.4 | I45: 0.3 | K45: 0.5 | L45: 0.4 | M45: 0.3
A46: 1 | B46: Class 1 | C46: Year 2 | D46: Class 1/Year 2 | E46: 0.6 | G46: 0 | H46: 0 | I46: 0 | K46: 0.1 | L46: 0.1 | M46: 0.1
A47: 2 | B47: Class 2 | C47: Year 2 | D47: Class 2/Year 2 | E47: 0.6 | G47: 0 | H47: 0 | I47: 0 | K47: 0.1 | L47: 0.1 | M47: 0.1
A48: 3 | B48: Class 3 | C48: Year 2 | D48: Class 3/Year 2 | E48: 0.5 | G48: 0.4 | H48: 0.3 | I48: 0.2 | K48: 0.2 | L48: 0.2 | M48: 0.2
A49: 4 | B49: Class 4 | C49: Year 2 | D49: Class 4/Year 2 | E49: 0.5 | G49: 0.4 | H49: 0.3 | I49: 0.2 | K49: 0.2 | L49: 0.2 | M49: 0.2
A50: 1 | B50: Class 1 | C50: Year 3 | D50: Class 1/Year 3 | E50: 0.7 | G50: 0 | H50: 0 | I50: 0 | K50: 0.05 | L50: 0.05 | M50: 0.05
A51: 2 | B51: Class 2 | C51: Year 3 | D51: Class 2/Year 3 | E51: 0.7 | G51: 0 | H51: 0 | I51: 0 | K51: 0.05 | L51: 0.05 | M51: 0.05
A52: 3 | B52: Class 3 | C52: Year 3 | D52: Class 3/Year 3 | E52: 0.7 | G52: 0.1 | H52: 0.1 | I52: 0.2 | K52: 0.1 | L52: 0.1 | M52: 0.1
A53: 4 | B53: Class 4 | C53: Year 3 | D53: Class 4/Year 3 | E53: 0.7 | G53: 0.1 | H53: 0.1 | I53: 0.2 | K53: 0.1 | L53: 0.1 | M53: 0.1
A54: 1 | B54: Class 1 | C54: Year 4 | D54: Class 1/Year 4 | E54: 0.9 | G54: 0 | H54: 0 | I54: 0 | K54: 0.01 | L54: 0.01 | M54: 0.01
A55: 2 | B55: Class 2 | C55: Year 4 | D55: Class 2/Year 4 | E55: 0.9 | G55: 0 | H55: 0 | I55: 0 | K55: 0.01 | L55: 0.01 | M55: 0.01
A56: 3 | B56: Class 3 | C56: Year 4 | D56: Class 3/Year 4 | E56: 0.8 | G56: 0 | H56: 0.1 | I56: 0.1 | K56: 0.05 | L56: 0.05 | M56: 0.05
A57: 4 | B57: Class 4 | C57: Year 4 | D57: Class 4/Year 4 | E57: 0.8 | G57: 0 | H57: 0.1 | I57: 0.2 | K57: 0.05 | L57: 0.05 | M57: 0.05
A58: 1 | B58: Class 1 | C58: Year 5 | D58: Class 1/Year 5 | E58: 0.9 | G58: 0 | H58: 0 | I58: 0 | K58: 0.01 | L58: 0.01 | M58: 0.01
A59: 2 | B59: Class 2 | C59: Year 5 | D59: Class 2/Year 5 | E59: 0.9 | G59: 0 | H59: 0 | I59: 0 | K59: 0.01 | L59: 0.01 | M59: 0.01
A60: 3 | B60: Class 3 | C60: Year 5 | D60: Class 3/Year 5 | E60: 0.9 | G60: 0 | H60: 0.1 | I60: 0.1 | K60: 0.01 | L60: 0.01 | M60: 0.01
A61: 4 | B61: Class 4 | C61: Year 5 | D61: Class 4/Year 5 | E61: 0.9 | G61: 0 | H61: 0.1 | I61: 0 | K61: 0.01 | L61: 0.05 | M61: 0.05
A62: 1 | B62: Class 1 | C62: Year 6 | D62: Class 1/Year 6 | E62: 1 | G62: 0 | H62: 0 | I62: 0 | K62: 0.01 | L62: 0.01 | M62: 0.01
A63: 2 | B63: Class 2 | C63: Year 6 | D63: Class 2/Year 6 | E63: 1 | G63: 0 | H63: 0 | I63: 0 | K63: 0.01 | L63: 0.01 | M63: 0.01
A64: 3 | B64: Class 3 | C64: Year 6 | D64: Class 3/Year 6 | E64: 1 | G64: 0 | H64: 0 | I64: 0.1 | K64: 0.01 | L64: 0.01 | M64: 0.01
A65: 4 | B65: Class 4 | C65: Year 6 | D65: Class 4/Year 6 | E65: 1 | G65: 0 | H65: 0 | I65: 0.1 | K65: 0.01 | L65: 0.05 | M65: 0.05
F67: CHECK TOTALS =>> | G67: =SUM(G42,G46,G50,G54,G58,G62) -> 1 | H67: 1 | I67: 1
F68: All should be 100%!! | G68: =SUM(G43,G47,G51,G55,G59,G63) -> 1 | H68: 1 | I68: 1
G69: =SUM(G44,G48,G52,G56,G60,G64) -> 1 | H69: 1 | I69: 1
G70: =SUM(G45,G49,G53,G57,G61,G65) -> 1 | H70: 1 | I70: =SUM(I45,I49,I53,I57,I61,I65) -> 1
B72: 6.1.3 Passive
H73: Initial Treatment Area as % of Infested By Year | L73: Yearly Treatment as % of Initial Cost
B74: Land Classification | C74: Year | D74: Tag | E74: =E8 -> % DSE Uplift | G74: Minor | H74: Moderate | I74: Heavy | K74: Minor | L74: Moderate | M74: Heavy
A75: 1 | B75: =B9 -> Class 1 | C75: Year 1 | D75: Class 1/Year 1 | E75: 0.05 | G75: 1 | H75: 0.75 | I75: 0.5 | K75: 1 | L75: 0.75 | M75: 0.25
A76: 2 | B76: Class 2 | C76: Year 1 | D76: Class 2/Year 1 | E76: 0.05 | G76: 0.5 | H76: 0.25 | I76: 0.25 | K76: 0.5 | L76: 0.25 | M76: 0.25
A77: 3 | B77: Class 3 | C77: Year 1 | D77: Class 3/Year 1 | E77: 0 | G77: 0 | H77: 0 | I77: 0 | K77: 0 | L77: 0 | M77: 0
A78: 4 | B78: Class 4 | C78: Year 1 | D78: Class 4/Year 1 | E78: 0 | G78: 0 | H78: 0 | I78: 0 | K78: 0 | L78: 0 | M78: 0
A79: 1 | B79: Class 1 | C79: Year 2 | D79: Class 1/Year 2 | E79: 0.2 | G79: 0 | H79: 0.25 | I79: 0.25 | K79: 0.1 | L79: 0.2 | M79: 0.3
A80: 2 | B80: Class 2 | C80: Year 2 | D80: Class 2/Year 2 | E80: 0.2 | G80: 0.25 | H80: 0.25 | I80: 0.25 | K80: 0.1 | L80: 0.2 | M80: 0.3
A81: 3 | B81: Class 3 | C81: Year 2 | D81: Class 3/Year 2 | E81: 0.2 | G81: 0.25 | H81: 0.25 | I81: 0.25 | K81: 0.1 | L81: 0.2 | M81: 0.3
A82: 4 | B82: Class 4 | C82: Year 2 | D82: Class 4/Year 2 | E82: 0 | G82: 0 | H82: 0 | I82: 0 | K82: 0 | L82: 0 | M82: 0
A83: 1 | B83: Class 1 | C83: Year 3 | D83: Class 1/Year 3 | E83: 0.4 | G83: 0 | H83: 0 | I83: 0.25 | K83: 0.1 | L83: 0.1 | M83: 0.1
A84: 2 | B84: Class 2 | C84: Year 3 | D84: Class 2/Year 3 | E84: 0.4 | G84: 0.25 | H84: 0.25 | I84: 0.25 | K84: 0.1 | L84: 0.1 | M84: 0.1
A85: 3 | B85: Class 3 | C85: Year 3 | D85: Class 3/Year 3 | E85: 0.4 | G85: 0.25 | H85: 0.25 | I85: 0.25 | K85: 0.05 | L85: 0.05 | M85: 0.05
A86: 4 | B86: Class 4 | C86: Year 3 | D86: Class 4/Year 3 | E86: 0 | G86: 0 | H86: 0 | I86: 0 | K86: 0 | L86: 0 | M86: 0
A87: 1 | B87: Class 1 | C87: Year 4 | D87: Class 1/Year 4 | E87: 0.8 | G87: 0 | H87: 0 | I87: 0 | K87: 0.05 | L87: 0.05 | M87: 0.05
A88: 2 | B88: Class 2 | C88: Year 4 | D88: Class 2/Year 4 | E88: 0.8 | G88: 0 | H88: 0.25 | I88: 0.25 | K88: 0.05 | L88: 0.05 | M88: 0.05
A89: 3 | B89: Class 3 | C89: Year 4 | D89: Class 3/Year 4 | E89: 0.8 | G89: 0.25 | H89: 0.25 | I89: 0.25 | K89: 0.05 | L89: 0.05 | M89: 0.05
A90: 4 | B90: Class 4 | C90: Year 4 | D90: Class 4/Year 4 | E90: 0 | G90: 0 | H90: 0 | I90: 0 | K90: 0 | L90: 0 | M90: 0
A91: 1 | B91: Class 1 | C91: Year 5 | D91: Class 1/Year 5 | E91: 0.9 | G91: 0 | H91: 0 | I91: 0 | K91: 0.05 | L91: 0.05 | M91: 0.05
A92: 2 | B92: Class 2 | C92: Year 5 | D92: Class 2/Year 5 | E92: 0.9 | G92: 0 | H92: 0 | I92: 0 | K92: 0.05 | L92: 0.05 | M92: 0.05
A93: 3 | B93: Class 3 | C93: Year 5 | D93: Class 3/Year 5 | E93: 0.9 | G93: 0.25 | H93: 0.25 | I93: 0.25 | K93: 0.05 | L93: 0.05 | M93: 0.05
A94: 4 | B94: Class 4 | C94: Year 5 | D94: Class 4/Year 5 | E94: 0.1 | G94: 0.5 | H94: 0.5 | I94: 0.5 | K94: 0 | L94: 0 | M94: 0
A95: 1 | B95: Class 1 | C95: Year 6 | D95: Class 1/Year 6 | E95: 1 | G95: 0 | H95: 0 | I95: 0 | K95: 0.01 | L95: 0.01 | M95: 0.01
A96: 2 | B96: Class 2 | C96: Year 6 | D96: Class 2/Year 6 | E96: 1 | G96: 0 | H96: 0 | I96: 0 | K96: 0.01 | L96: 0.01 | M96: 0.01
A97: 3 | B97: Class 3 | C97: Year 6 | D97: Class 3/Year 6 | E97: 1 | G97: 0 | H97: 0 | I97: 0 | K97: 0.01 | L97: 0.01 | M97: 0.01
A98: 4 | B98: Class 4 | C98: Year 6 | D98: Class 4/Year 6 | E98: 0.5 | G98: 0.5 | H98: 0.5 | I98: 0.5 | K98: 0.2 | L98: 0.2 | M98: 0.2
F100: CHECK TOTALS =>> | G100: =SUM(G75,G79,G83,G87,G91,G95) -> 1 | H100: 1 | I100: 1
F101: All should be 100%!! | G101: =SUM(G76,G80,G84,G88,G92,G96) -> 1 | H101: 1 | I101: 1
G102: =SUM(G77,G81,G85,G89,G93,G97) -> 1 | H102: 1 | I102: 1
G103: =SUM(G78,G82,G86,G90,G94,G98) -> 1 | H103: 1 | I103: =SUM(I78,I82,I86,I90,I94,I98) -> 1
A104: << PREVIOUS | M104: NEXT >>

Sheet Reference Data (hidden)
A1: Reference Data | L1: Selected Treatment Regime Details
F2: GROUND APPLICATION MULTIPLIERS | M2: Currently Selected: | N2: =Treatment_Regime_Selected -> Aggressive | P2: Idx: | Q2: =MATCH(N2,Treatment_Regimes,0) -> 1
B3: Land Class | F3: Infestation Intensity | G3: Treatment Multiplier | H3: Labour Multiplier | S3: Initial Treatment Area as % of Infested By Year | W3: Yearly Treatment as % of Initial Cost | AB3: LATER: Think about formatting…
B4: Class 1 | F4: (none) | G4: 0 | H4: 0 | M4: Land Classification | N4: Year | O4: Tag | P4: % DSE Uplift | R4: =$F$5 -> Minor | S4: =$F$6 -> Moderate | T4: =$F$7 -> Heavy | V4: =$F$5 -> Minor | W4: =$F$6 -> Moderate | X4: =$F$7 -> Heavy
B5: Class 2 | F5: Minor | G5: 1 | H5: 1 | L5: 1 | M5: =INDEX(Land_Class,L5) -> Class 1 | N5: Year 1 | O5: =M5&"/"&N5 -> Class 1/Year 1 | P5: =INDEX(Treatment_Regime_Areas,ROW()-ROW($M$5)+1,COLUMN()-COLUMN($M$5)+1,$Q$2) -> 0.25 | R5: =INDEX(Treatment_Regime_Areas,ROW()-ROW($M$5)+1,COLUMN()-COLUMN($M$5)+1,$Q$2) -> 1 | S5: 1 | T5: 1 | V5: =INDEX(Treatment_Regime_Areas,ROW()-ROW($M$5)+1,COLUMN()-COLUMN($M$5)+1,$Q$2) -> 1 | W5: 1 | X5: 1 | AC5: Property Name: | AD5: Test Property 1
B6: Class 3 | F6: Moderate | G6: 2 | H6: 2 | L6: 2 | M6: Class 2 | N6: Year 1 | O6: Class 2/Year 1 | P6: 0.25 | R6: 1 | S6: 1 | T6: 1 | V6: 1 | W6: 1 | X6: 1
B7: Class 4 | F7: Heavy | G7: 3 | H7: 4 | L7: 3 | M7: Class 3 | N7: Year 1 | O7: Class 3/Year 1 | P7: 0.25 | R7: 1 | S7: 1 | T7: 1 | V7: 1 | W7: 1 | X7: 1 | AC7: Property Name: | AD7: Test Property 1
L8: 4 | M8: Class 4 | N8: Year 1 | O8: Class 4/Year 1 | P8: 0.25 | R8: 1 | S8: 1 | T8: 1 | V8: 1 | W8: 1 | X8: 1
B9: Treatment Regimes | L9: 1 | M9: Class 1 | N9: Year 2 | O9: Class 1/Year 2 | P9: 0.6 | R9: 0 | S9: 0 | T9: 0 | V9: 0.1 | W9: 0.2 | X9: 0.3 | AD9: Test Property 1
B10: Aggressive | L10: 2 | M10: Class 2 | N10: Year 2 | O10: Class 2/Year 2 | P10: 0.6 | R10: 0 | S10: 0 | T10: 0 | V10: 0.1 | W10: 0.2 | X10: 0.3
B11: Active | F11: Site Access | G11: (spare) | L11: 3 | M11: Class 3 | N11: Year 2 | O11: Class 3/Year 2 | P11: 0.6 | R11: 0 | S11: 0 | T11: 0 | V11: 0.1 | W11: 0.2 | X11: 0.3 | AC11: Calculated Fields
B12: Passive | F12: Good | L12: 4 | M12: Class 4 | N12: Year 2 | O12: Class 4/Year 2 | P12: 0.6 | R12: 0 | S12: 0 | T12: 0 | V12: 0.1 | W12: 0.2 | X12: 0.3
B13: (not used) | F13: Fair | L13: 1 | M13: Class 1 | N13: Year 3 | O13: Class 1/Year 3 | P13: 0.9 | R13: 0 | S13: 0 | T13: 0 | V13: 0.05 | W13: 0.1 | X13: 0.2 | AC13: Calculated Fields
F14: Difficult | L14: 2 | M14: Class 2 | N14: Year 3 | O14: Class 2/Year 3 | P14: 0.9 | R14: 0 | S14: 0 | T14: 0 | V14: 0.05 | W14: 0.1 | X14: 0.2
L15: 3 | M15: Class 3 | N15: Year 3 | O15: Class 3/Year 3 | P15: 0.9 | R15: 0 | S15: 0 | T15: 0 | V15: 0.05 | W15: 0.1 | X15: 0.2
F16: AERIAL APPLICATION MULTIPLIERS | L16: 4 | M16: Class 4 | N16: Year 3 | O16: Class 4/Year 3 | P16: 0.9 | R16: 0 | S16: 0 | T16: 0 | V16: 0.05 | W16: 0.1 | X16: 0.2
F17: Infestation Intensity | G17: Treatment Multiplier | H17: Labour Multiplier | L17: 1 | M17: Class 1 | N17: Year 4 | O17: Class 1/Year 4 | P17: 1 | R17: 0 | S17: 0 | T17: 0 | V17: 0.01 | W17: 0.05 | X17: 0.05 | AC17: Property Name: | AD17: Test Property 1
F18: (none) | L18: 2 | M18: Class 2 | N18: Year 4 | O18: Class 2/Year 4 | P18: 1 | R18: 0 | S18: 0 | T18: 0 | V18: 0.01 | W18: 0.05 | X18: 0.05
F19: Minor | L19: 3 | M19: Class 3 | N19: Year 4 | O19: Class 3/Year 4 | P19: 1 | R19: 0 | S19: 0 | T19: 0 | V19: 0.01 | W19: 0.05 | X19: 0.05 | AC19: Calculated Fields
F20: Moderate | L20: 4 | M20: Class 4 | N20: Year 4 | O20: Class 4/Year 4 | P20: 1 | R20: 0 | S20: 0 | T20: 0 | V20: 0.01 | W20: 0.05 | X20: 0.05
F21: Heavy | L21: 1 | M21: Class 1 | N21: Year 5 | O21: Class 1/Year 5 | P21: 1 | R21: 0 | S21: 0 | T21: 0 | V21: 0.01 | W21: 0.03 | X21: 0.03
L22: 2 | M22: Class 2 | N22: Year 5 | O22: Class 2/Year 5 | P22: 1 | R22: 0 | S22: 0 | T22: 0 | V22: 0.01 | W22: 0.03 | X22: 0.03 | AB22: =IF('2. Land & Property'!H58='2. Land & Property'!D28,1,IF(ISBLANK('2. Land & Property'!D28),0,-1)) -> 1 | AC22: =IF(AB22=-1,"ERROR: This Total must match Property Total at "&ADDRESS(ROW('2. Land & Property'!D28),COLUMN('2. Land & Property'!D28)),"") -> 
F23: Livestock Class | L23: 3 | M23: Class 3 | N23: Year 5 | O23: Class 3/Year 5 | P23: 1 | R23: 0 | S23: 0 | T23: 0 | V23: 0.01 | W23: 0.03 | X23: 0.03
F24: Livestock Class | G24: DSE Equivalent | H24: (spare) | L24: 4 | M24: Class 4 | N24: Year 5 | O24: Class 4/Year 5 | P24: 1 | R24: 0 | S24: 0 | T24: 0 | V24: 0.01 | W24: 0.03 | X24: 0.03
F25: CFA Cows | G25: 10 | L25: 1 | M25: Class 1 | N25: Year 6 | O25: Class 1/Year 6 | P25: 1 | R25: 0 | S25: 0 | T25: 0 | V25: 0.01 | W25: 0.03 | X25: 0.03
F26: Cow & Calf Unit | G26: 15 | L26: 2 | M26: Class 2 | N26: Year 6 | O26: Class 2/Year 6 | P26: 1 | R26: 0 | S26: 0 | T26: 0 | V26: 0.01 | W26: 0.03 | X26: 0.03
F27: Weaners | G27: 7 | L27: 3 | M27: Class 3 | N27: Year 6 | O27: Class 3/Year 6 | P27: 1 | R27: 0 | S27: 0 | T27: 0 | V27: 0.01 | W27: 0.03 | X27: 0.03
F28: Steers | G28: 10 | L28: 4 | M28: Class 4 | N28: Year 6 | O28: Class 4/Year 6 | P28: 1 | R28: 0 | S28: 0 | T28: 0 | V28: 0.01 | W28: 0.03 | X28: 0.03
F29: Heifers | G29: 9
F30: Bullocks | G30: 12 | Q30: CHECK TOTALS =>> | R30: =SUM(R5,R9,R13,R17,R21,R25) -> 1 | S30: 1 | T30: 1
F31: Bulls | G31: 16 | Q31: All should be 100%!! | R31: 1 | S31: 1 | T31: 1
R32: 1 | S32: 1 | T32: 1
R33: 1 | S33: 1 | T33: 1

Sheet Settings (hidden)
B1: Application Settings | L1: Lookup Tables
E2: (Default)
C3: Name | D3: Comment | E3: Value | L3: GST Taxable Tags | T3: Dimension | U3: Values
C4: App_Version | D4: Version number of the application | E4: V1.0f2c | M4: Text Tag | N4: Taxed | T4: Class of Land | U4: Class 1, 2, 3 & 4 by %
C5: App_Name | D5: Defines the section or department this timesheet is for. | E5: Blackberry Weed Management - Agricultural Productivity Model | M5: AUS GST | N5: Y | T5: % Infestation | U5: % by Class of Land
M6: No GST | N6: N | T6: Intestation Intensity | U6: Minor/Moderate/Heavy by Class of Land
C7: App_Save_Enabled | D7: Determines if User can normally Save the Application Workbook | E7: TRUE | T7: Control Method | U7: Ground/Aerial by Class of Land
C8: App_Startup_Worksheet | D8: Worksheet to activate on Workbook Open | E8: Main | T8: Product Treatment | U8: Chemicals (1 to 3) by Class of Land
C9: App_Startup_Process | D9: Name of Default Processing. Often used in initialising the Startup Worksheet and setting labels | E9: GL | L9: GST Tax Types | U9: => Products
C10: Admin_Users | D10: List of Usernames that can unprotect the Workbook | E10: ROB-HP-PROBOOK-\ROB,AZUREAD\MICHAELREDFERN | M10: Text Tag | N10: Debit | O10: Credit | T10: Terrain | U10: Flat/Moderate/Steep by Class of Land
T11: Access | U11: Good/Fair/Difficult by Class of Land
C13: Connection_Auto_Connect | D13: If TRUE, the App will automatically connect to the current database asap (generally via the Workbook_Open event). Other it will do it on demand when required to execute a requested function. | E13: N
C14: Connection_Enabled | D14: Flags if database connection is enabled or not | E14: N
C15: Connection_DSN_Less | D15: Flags if database connection is DSN less or not | E15: Y
C16: Connection_DNS_Name | D16: Data Source Name (DSN) if not using DSN-less connection
C17: Connection_Username | D17: Database Username if using SQL Authentication (leave blank to use Windows Authentication)
C18: Connection_Password | D18: Database password if using SQL Authentication
C19: Connection_Reset | D19: Flags to reset connection every time a function is executed (good for testing or when changing connection details regularily) | E19: N
C21: Debug_Enabled | D21: Enable extra processing/logging for debugging purposes | E21: N
C22: Development_Enabled | D22: Flags application is in development mode so some security and data protection is disabled | E22: N
C24: DSE_Per_Cow | D24: Factor to convert Dry Sheep Equivalent (DSE) to Cows | E24: 10
C25: Hectares_To_Acres | D25: Factor to convert Hectares to Acres | E25: =1/0.404686 -> 2.47105163
C27: Worksheet_Pwd | D27: Password used in protecting the worksheets | E27: prpaw2019!
B30: Persistant Application Values
C31: Used to save application variables whose values can't be lost on an untrapped error or you want available next time you open the workbook
C32: Name | D32: Comment | E32: Value
C34: Current_User_Domain | D34: Network Domain name - used to detect change in Domain and prompt for confirm of Database Connection | E34: ROB-HP-PROBOOK-
B39: Excel Settings
C40: Used to save settings on Application Open for later restore on close
C41: Name | D41: Comment | E41: Value
C42: Sample 1 | E42: TRUE
C44: XL_Environ_Initialised | D44: XL_Environ_Initialised | E44: FALSE | F44: Indicates if the original XL values have been captured
C45: XL_Orig_CellDragAndDrop | D45: XL_Orig_CellDragAndDrop | E45: TRUE | F45: Original value of the Application.CellDragAndDrop property on the WB's open
C46: XL_Orig_DisplayStatusBar | D46: XL_Orig_DisplayStatusBar | E46: TRUE | F46: Original value of the Application.DisplayStatusBar property on the WB's open
C47: XL_Orig_ErrorCheckingOptions.NumberAsText | D47: XL_Orig_ErrorCheckingOptions.NumberAsText | E47: TRUE | F47: Original value of the Application.ShowSelectionFloaties property on the WB's open
C48: XL_Orig_Ribbon_Minimised | D48: XL_Orig_Ribbon_Minimised | E48: FALSE | F48: Original value of the Application.ShowSelectionFloaties property on the WB's open
C49: XL_Orig_Ribbon_Visible | D49: XL_Orig_Ribbon_Visible | E49: TRUE | F49: Original value of the Application.ShowSelectionFloaties property on the WB's open
C50: XL_Orig_ShowSelectionFloaties | D50: XL_Orig_ShowSelectionFloaties | E50: TRUE | F50: Original value of the Application.ShowSelectionFloaties property on the WB's open
C52: XL_Ribbon_Pointer | D52: Temporary storage of pointer to IRibbonUI control. Saved here to void its lost as a variable when a VBA error occurs and resets all global variables.

Sheet Primary Treatment
A1: << PREVIOUS | F1: Version: | G1: =Settings!App_Version -> V1.0f2c | I1: NEXT >>
B3: ="Victorian Blackberry Taskforce - "&Settings!App_Name -> Victorian Blackberry Taskforce - Blackberry Weed Management - Agricultural Productivity Model
B5: =Introduction!B24 -> A 'cost benefit' analysis tool for a livestock grazing operation, specific to chemical control costs and projected productivity benefit
B7: Annual Output Summary Tables | H7: Treatment Regime: | I7: =Treatment_Regime_Selected -> Aggressive
B9: Cost Year 1
B10: Land Classification (%) | C10: Primary Area Affected (ha) | D10: Primary Treated Area (ha) | E10: Maintenance (ha) | F10: Cost Per ha | G10: Total Cost (Primary & Maintenance) | H10: Total Benefit | I10: Differential
B11: Class 1 | C11: ='2. Land & Property'!M92+'2. Land & Property'!M93+'2. Land & Property'!M94 -> 0 | D11: ='2. Land & Property'!D117+'2. Land & Property'!E117+'2. Land & Property'!F117 -> 0 | E11: ='2. Land & Property'!D131+'2. Land & Property'!E131+'2. Land & Property'!F131 -> 0 | F11: =IF(SUM(D11+E11)=0,0,G11/(D11+E11)) -> 0 | G11: ='2. Land & Property'!D124+'2. Land & Property'!E124+'2. Land & Property'!F124+'2. Land & Property'!D139+'2. Land & Property'!E139+'2. Land & Property'!F139 -> 0 | H11: ='2. Land & Property'!D79 -> 0 | I11: =H11-G11 -> 0
B12: Class 2 | C12: ='2. Land & Property'!M95+'2. Land & Property'!M96+'2. Land & Property'!M97 -> 0 | D12: ='2. Land & Property'!G117+'2. Land & Property'!H117+'2. Land & Property'!I117 -> 0 | E12: ='2. Land & Property'!G131+'2. Land & Property'!H131+'2. Land & Property'!I131 -> 0 | F12: 0 | G12: ='2. Land & Property'!G124+'2. Land & Property'!H124+'2. Land & Property'!I124+'2. Land & Property'!G139+'2. Land & Property'!H139+'2. Land & Property'!I139 -> 0 | H12: ='2. Land & Property'!D80 -> 0 | I12: =H12-G12 -> 0
B13: Class 3 | C13: ='2. Land & Property'!M98+'2. Land & Property'!M99+'2. Land & Property'!M100 -> 0 | D13: ='2. Land & Property'!J117+'2. Land & Property'!K117+'2. Land & Property'!L117 -> 0 | E13: ='2. Land & Property'!J131+'2. Land & Property'!K131+'2. Land & Property'!L131 -> 0 | F13: 0 | G13: ='2. Land & Property'!J124+'2. Land & Property'!K124+'2. Land & Property'!L124+'2. Land & Property'!J139+'2. Land & Property'!K139+'2. Land & Property'!L139 -> 0 | H13: ='2. Land & Property'!D81 -> 0 | I13: 0
B14: Class 4 | C14: ='2. Land & Property'!M101+'2. Land & Property'!M102+'2. Land & Property'!M103 -> 0 | D14: ='2. Land & Property'!M117+'2. Land & Property'!N117+'2. Land & Property'!O117 -> 0 | E14: ='2. Land & Property'!M131+'2. Land & Property'!N131+'2. Land & Property'!O131 -> 0 | F14: 0 | G14: ='2. Land & Property'!M124+'2. Land & Property'!N124+'2. Land & Property'!O124+'2. Land & Property'!M139+'2. Land & Property'!N139+'2. Land & Property'!O139 -> 0 | H14: ='2. Land & Property'!D82 -> 0 | I14: 0
B15: Total | C15: =SUM(C11:C14) -> 0 | D15: =SUM(D11:D14) -> 0 | E15: =SUM(E11:E14) -> 0 | G15: =SUM(G11:G14) -> 0 | H15: =SUM(H11:H14) -> 0 | I15: =H15-G15 -> 0
B17: Percentage of Area Treated | D17: =IF(C15=0,0,D15/C15) -> 0 | E17: =IF(C15=0,0,E15/C15) -> 0
B21: Cost Year 2
B22: Land Classification (%) | C22: Primary Area Affected (ha) | D22: Primary Treated Area (ha) | E22: Maintenance (ha) | F22: Cost Per ha | G22: Total Cost (Primary & Maintenance) | H22: Total Benefit | I22: Differential
B23: Class 1 | C23: =C11-D11 -> 0 | D23: ='2. Land & Property'!D118+'2. Land & Property'!E118+'2. Land & Property'!F118 -> 0 | E23: ='2. Land & Property'!D132+'2. Land & Property'!E132+'2. Land & Property'!F132 -> 0 | F23: =IF(SUM(D23+E23)=0,0,G23/(D23+E23)) -> 0 | G23: ='2. Land & Property'!D125+'2. Land & Property'!E125+'2. Land & Property'!F125+'2. Land & Property'!D140+'2. Land & Property'!E140+'2. Land & Property'!F140 -> 0 | H23: ='2. Land & Property'!E79 -> 0 | I23: =H23-G23 -> 0
B24: Class 2 | C24: =C12-D12 -> 0 | D24: ='2. Land & Property'!G118+'2. Land & Property'!H118+'2. Land & Property'!I118 -> 0 | E24: ='2. Land & Property'!G132+'2. Land & Property'!H132+'2. Land & Property'!I132 -> 0 | F24: 0 | G24: ='2. Land & Property'!G125+'2. Land & Property'!H125+'2. Land & Property'!I125+'2. Land & Property'!G140+'2. Land & Property'!H140+'2. Land & Property'!I140 -> 0 | H24: ='2. Land & Property'!E80 -> 0 | I24: =H24-G24 -> 0
B25: Class 3 | C25: =C13-D13 -> 0 | D25: ='2. Land & Property'!J118+'2. Land & Property'!K118+'2. Land & Property'!L118 -> 0 | E25: ='2. Land & Property'!J132+'2. Land & Property'!K132+'2. Land & Property'!L132 -> 0 | F25: 0 | G25: ='2. Land & Property'!J125+'2. Land & Property'!K125+'2. Land & Property'!L125+'2. Land & Property'!J140+'2. Land & Property'!K140+'2. Land & Property'!L140 -> 0 | H25: ='2. Land & Property'!E81 -> 0 | I25: 0
B26: Class 4 | C26: =C14-D14 -> 0 | D26: ='2. Land & Property'!M118+'2. Land & Property'!N118+'2. Land & Property'!O118 -> 0 | E26: ='2. Land & Property'!M132+'2. Land & Property'!N132+'2. Land & Property'!O132 -> 0 | F26: 0 | G26: ='2. Land & Property'!M125+'2. Land & Property'!N125+'2. Land & Property'!O125+'2. Land & Property'!M140+'2. Land & Property'!N140+'2. Land & Property'!O140 -> 0 | H26: ='2. Land & Property'!E82 -> 0 | I26: 0
B27: Total | C27: =SUM(C23:C26) -> 0 | D27: =SUM(D23:D26) -> 0 | E27: =SUM(E23:E26) -> 0 | G27: =SUM(G23:G26) -> 0 | H27: =SUM(H23:H26) -> 0 | I27: =H27-G27 -> 0
B29: Percentage of Area Treated | D29: =IF(C27=0,0,D27/C27) -> 0 | E29: =IF(C27=0,0,E27/C27) -> 0
B33: Cost Year 3
B34: Land Classification (%) | C34: Primary Area Affected (ha) | D34: Primary Treated Area (ha) | E34: Maintenance (ha) | F34: Cost Per ha | G34: Total Cost (Primary & Maintenance) | H34: Total Benefit | I34: Differential
B35: Class 1 | C35: =C23-D23 -> 0 | D35: ='2. Land & Property'!D119+'2. Land & Property'!E119+'2. Land & Property'!F119 -> 0 | E35: ='2. Land & Property'!D133+'2. Land & Property'!E133+'2. Land & Property'!F133 -> 0 | F35: =IF(SUM(D35+E35)=0,0,G35/(D35+E35)) -> 0 | G35: ='2. Land & Property'!D126+'2. Land & Property'!E126+'2. Land & Property'!F126+'2. Land & Property'!D141+'2. Land & Property'!E141+'2. Land & Property'!F141 -> 0 | H35: ='2. Land & Property'!F81 -> 0 | I35: =H35-G35 -> 0
B36: Class 2 | C36: =C24-D24 -> 0 | D36: ='2. Land & Property'!G119+'2. Land & Property'!H119+'2. Land & Property'!I119 -> 0 | E36: ='2. Land & Property'!G133+'2. Land & Property'!H133+'2. Land & Property'!I133 -> 0 | F36: 0 | G36: ='2. Land & Property'!G126+'2. Land & Property'!H126+'2. Land & Property'!I126+'2. Land & Property'!G141+'2. Land & Property'!H141+'2. Land & Property'!I141 -> 0 | H36: ='2. Land & Property'!F80 -> 0 | I36: =H36-G36 -> 0
B37: Class 3 | C37: =C25-D25 -> 0 | D37: ='2. Land & Property'!J119+'2. Land & Property'!K119+'2. Land & Property'!L119 -> 0 | E37: ='2. Land & Property'!J133+'2. Land & Property'!K133+'2. Land & Property'!L133 -> 0 | F37: 0 | G37: ='2. Land & Property'!J126+'2. Land & Property'!K126+'2. Land & Property'!L126+'2. Land & Property'!J141+'2. Land & Property'!K141+'2. Land & Property'!L141 -> 0 | H37: ='2. Land & Property'!F81 -> 0 | I37: 0
B38: Class 4 | C38: =C26-D26 -> 0 | D38: ='2. Land & Property'!M119+'2. Land & Property'!N119+'2. Land & Property'!O119 -> 0 | E38: ='2. Land & Property'!M133+'2. Land & Property'!N133+'2. Land & Property'!O133 -> 0 | F38: 0 | G38: ='2. Land & Property'!M126+'2. Land & Property'!N126+'2. Land & Property'!M141+'2. Land & Property'!N141+'2. Land & Property'!O141 -> 0 | H38: ='2. Land & Property'!F82 -> 0 | I38: 0
B39: Total | C39: =SUM(C35:C38) -> 0 | D39: =SUM(D35:D38) -> 0 | E39: =SUM(E35:E38) -> 0 | G39: =SUM(G35:G38) -> 0 | H39: =SUM(H35:H38) -> 0 | I39: =H39-G39 -> 0
B41: Percentage of Area Treated | D41: =IF(C39=0,0,D39/C39) -> 0 | E41: =IF(C39=0,0,E39/C39) -> 0
B45: Cost Year 4
B46: Land Classification (%) | C46: Primary Area Affected (ha) | D46: Primary Treated Area (ha) | E46: Maintenance (ha) | F46: Cost Per ha | G46: Total Cost (Primary & Maintenance) | H46: Total Benefit | I46: Differential
B47: Class 1 | C47: =C35-D35 -> 0 | D47: ='2. Land & Property'!D120+'2. Land & Property'!E120+'2. Land & Property'!F120 -> 0 | E47: ='2. Land & Property'!D135+'2. Land & Property'!E135+'2. Land & Property'!F135 -> 0 | F47: =IF(SUM(D47+E47)=0,0,G47/(D47+E47)) -> 0 | G47: ='2. Land & Property'!D127+'2. Land & Property'!E127+'2. Land & Property'!F127+'2. Land & Property'!D142+'2. Land & Property'!E142+'2. Land & Property'!F142 -> 0 | H47: ='2. Land & Property'!G79 -> 0 | I47: =H47-G47 -> 0
B48: Class 2 | C48: =C36-D36 -> 0 | D48: ='2. Land & Property'!G120+'2. Land & Property'!H120+'2. Land & Property'!I120 -> 0 | E48: ='2. Land & Property'!G134+'2. Land & Property'!H134+'2. Land & Property'!I134 -> 0 | F48: 0 | G48: ='2. Land & Property'!G127+'2. Land & Property'!H127+'2. Land & Property'!I127+'2. Land & Property'!G142+'2. Land & Property'!H142+'2. Land & Property'!I142 -> 0 | H48: ='2. Land & Property'!G80 -> 0 | I48: =H48-G48 -> 0
B49: Class 3 | C49: 0 | D49: ='2. Land & Property'!J120+'2. Land & Property'!K120+'2. Land & Property'!L120 -> 0 | E49: ='2. Land & Property'!J134+'2. Land & Property'!K134+'2. Land & Property'!L134 -> 0 | F49: 0 | G49: ='2. Land & Property'!J127+'2. Land & Property'!K127+'2. Land & Property'!L127+'2. Land & Property'!J142+'2. Land & Property'!K142+'2. Land & Property'!L142 -> 0 | H49: ='2. Land & Property'!G81 -> 0 | I49: 0
B50: Class 4 | C50: 0 | D50: ='2. Land & Property'!M120+'2. Land & Property'!N120+'2. Land & Property'!O120 -> 0 | E50: ='2. Land & Property'!M134+'2. Land & Property'!N134+'2. Land & Property'!O134 -> 0 | F50: 0 | G50: ='2. Land & Property'!M127+'2. Land & Property'!N127+'2. Land & Property'!O127+'2. Land & Property'!M142+'2. Land & Property'!N142+'2. Land & Property'!O142 -> 0 | H50: ='2. Land & Property'!G82 -> 0 | I50: 0
B51: Total | C51: =SUM(C47:C50) -> 0 | D51: =SUM(D47:D50) -> 0 | E51: =SUM(E47:E50) -> 0 | G51: =SUM(G47:G50) -> 0 | H51: =SUM(H47:H50) -> 0 | I51: =H51-G51 -> 0
B53: Percentage of Area Treated | D53: =IF(C51=0,0,D51/C51) -> 0 | E53: =IF(C51=0,0,E51/C51) -> 0
B57: Cost Year 5
B58: Land Classification (%) | C58: Primary Area Affected (ha) | D58: Primary Treated Area (ha) | E58: Maintenance (ha) | F58: Cost Per ha | G58: Total Cost (Primary & Maintenance) | H58: Total Benefit | I58: Differential
B59: Class 1 | C59: =C47-D47 -> 0 | D59: ='2. Land & Property'!D121+'2. Land & Property'!E121+'2. Land & Property'!F121 -> 0 | E59: ='2. Land & Property'!D135+'2. Land & Property'!E135+'2. Land & Property'!F135 -> 0 | F59: =IF(SUM(D59+E59)=0,0,G59/(D59+E59)) -> 0 | G59: ='2. Land & Property'!D128+'2. Land & Property'!E128+'2. Land & Property'!F128+'2. Land & Property'!D143+'2. Land & Property'!E143+'2. Land & Property'!F143 -> 0 | H59: ='2. Land & Property'!I79 -> 0 | I59: =H59-G59 -> 0
B60: Class 2 | C60: =C48-D48 -> 0 | D60: ='2. Land & Property'!G121+'2. Land & Property'!H121+'2. Land & Property'!I121 -> 0 | E60: ='2. Land & Property'!G135+'2. Land & Property'!H135+'2. Land & Property'!I135 -> 0 | F60: 0 | G60: ='2. Land & Property'!G128+'2. Land & Property'!H128+'2. Land & Property'!I128+'2. Land & Property'!G143+'2. Land & Property'!H143+'2. Land & Property'!I143 -> 0 | H60: ='2. Land & Property'!I80 -> 0 | I60: =H60-G60 -> 0
B61: Class 3 | C61: 0 | D61: ='2. Land & Property'!J121+'2. Land & Property'!K121+'2. Land & Property'!L121 -> 0 | E61: ='2. Land & Property'!J135+'2. Land & Property'!K135+'2. Land & Property'!L135 -> 0 | F61: 0 | G61: ='2. Land & Property'!J128+'2. Land & Property'!K128+'2. Land & Property'!L128+'2. Land & Property'!J143+'2. Land & Property'!K143+'2. Land & Property'!L143 -> 0 | H61: ='2. Land & Property'!I81 -> 0 | I61: 0
B62: Class 4 | C62: 0 | D62: ='2. Land & Property'!M121+'2. Land & Property'!N121+'2. Land & Property'!O121 -> 0 | E62: ='2. Land & Property'!M135+'2. Land & Property'!N135+'2. Land & Property'!O135 -> 0 | F62: 0 | G62: ='2. Land & Property'!M128+'2. Land & Property'!N128+'2. Land & Property'!O128+'2. Land & Property'!M143+'2. Land & Property'!N143+'2. Land & Property'!O143 -> 0 | H62: ='2. Land & Property'!I82 -> 0 | I62: 0
B63: Total | C63: =SUM(C59:C62) -> 0 | D63: =SUM(D59:D62) -> 0 | E63: =SUM(E59:E62) -> 0 | G63: =SUM(G59:G62) -> 0 | H63: =SUM(H59:H62) -> 0 | I63: =H63-G63 -> 0
B65: Percentage of Area Treated | D65: =IF(C63=0,0,D63/C63) -> 0 | E65: =IF(C63=0,0,E63/C63) -> 0
A68: << PREVIOUS | I68: NEXT >>

Sheet 5 year Cost Benefit Graph
A1: << PREVIOUS | K1: Version: | L1: =Settings!App_Version -> V1.0f2c | M1: NEXT >>
B3: ="Victorian Blackberry Taskforce - "&Settings!App_Name -> Victorian Blackberry Taskforce - Blackberry Weed Management - Agricultural Productivity Model
B5: =Introduction!B24 -> A 'cost benefit' analysis tool for a livestock grazing operation, specific to chemical control costs and projected productivity benefit
B7: Cost Benefit Graph - Five year program
B10: Treatment Regime: | E10: Year 1 | F10: Year 2 | G10: Year 3 | H10: Year 4 | I10: Year 5
B11: =Treatment_Regime_Selected -> Aggressive | D11: Cost | E11: ='Primary Treatment'!$G$15 -> 0 | F11: ='Primary Treatment'!$G$27 -> 0 | G11: ='Primary Treatment'!$G$39 -> 0 | H11: ='Primary Treatment'!$G$51 -> 0 | I11: ='Primary Treatment'!$G$63 -> 0
D12: Benefit | E12: ='Primary Treatment'!$H$15 -> 0 | F12: ='Primary Treatment'!$H$27 -> 0 | G12: ='Primary Treatment'!$H$39 -> 0 | H12: ='Primary Treatment'!$H$51 -> 0 | I12: ='Primary Treatment'!$H$63 -> 0
D13: Net* | E13: =E12-E11 -> 0 | F13: 0 | G13: 0 | H13: 0 | I13: 0
A39: << PREVIOUS | M39: NEXT >>

Sheet 5 year cumulative
A1: << PREVIOUS | K1: Version: | L1: =Settings!App_Version -> V1.0f2c
B3: ="Victorian Blackberry Taskforce - "&Settings!App_Name -> Victorian Blackberry Taskforce - Blackberry Weed Management - Agricultural Productivity Model
B5: =Introduction!B24 -> A 'cost benefit' analysis tool for a livestock grazing operation, specific to chemical control costs and projected productivity benefit
B7: Cost Benefit Graph - Five year program (cumulative)
B9: Treatment Regime: | E9: Year 1 | F9: Year 2 | G9: Year 3 | H9: Year 4 | I9: Year 5
B10: =Treatment_Regime_Selected -> Aggressive | D10: Cost | E10: ='Primary Treatment'!$G$15 -> 0 | F10: ='Primary Treatment'!$G$27 -> 0 | G10: ='Primary Treatment'!$G$39 -> 0 | H10: ='Primary Treatment'!$G$51 -> 0 | I10: ='Primary Treatment'!$G$63 -> 0
D11: Cumulative Cost | E11: =E10 -> 0 | F11: =SUM(E11,F10) -> 0 | G11: 0 | H11: 0 | I11: 0
D12: Benefit | E12: ='Primary Treatment'!$H$15 -> 0 | F12: ='Primary Treatment'!$H$27 -> 0 | G12: ='Primary Treatment'!$H$39 -> 0 | H12: ='Primary Treatment'!$H$51 -> 0 | I12: ='Primary Treatment'!$H$63 -> 0
D13: Cumulative Benefit | E13: =E12 -> 0 | F13: =SUM(E13,F12) -> 0 | G13: =SUM(F13,G12) -> 0 | H13: =SUM(G13,H12) -> 0 | I13: =SUM(H13,I12) -> 0
D14: Net (by Year)* | E14: =E12-E10 -> 0 | F14: 0 | G14: 0 | H14: 0 | I14: 0
D15: Cumulative Net* | E15: =E13-E11 -> 0 | F15: =F13-F11 -> 0 | G15: 0 | H15: 0 | I15: 0
A61: << PREVIOUS

Sheet 5 year per hectare benefit (hidden)
A1: << PREVIOUS | M1: Version: | N1: =Settings!App_Version -> V1.0f2c
B3: ="Victorian Blackberry Taskforce - "&Settings!App_Name -> Victorian Blackberry Taskforce - Blackberry Weed Management - Agricultural Productivity Model
B5: =Introduction!B24 -> A 'cost benefit' analysis tool for a livestock grazing operation, specific to chemical control costs and projected productivity benefit
B7: Cost Benefit Graph - Nominal dollar cost - Five year program
C9: Year 1 | D9: Year 2 | E9: Year 3 | F9: Year 4 | G9: Year 5
B10: Cost per hectare | C10: =#REF!/'2. Land & Property'!$D$28 ->  | D10: =#REF!/'2. Land & Property'!$D$28 ->  | E10: =#REF!/'2. Land & Property'!$D$28 ->  | F10: =#REF!/'2. Land & Property'!$D$28 ->  | G10: =#REF!/'2. Land & Property'!$D$28 -> 
B11: Benefit per hectare | C11: =#REF!/'2. Land & Property'!$D$28 ->  | D11: =#REF!/'2. Land & Property'!$D$28 ->  | E11: =#REF!/'2. Land & Property'!$D$28 ->  | F11: =#REF!/'2. Land & Property'!$D$28 ->  | G11: =#REF!/'2. Land & Property'!$D$28 -> 
B12: Loss/benefit | C12: =C11-C10 ->  | D12: =D11-D10 -> 
A40: << PREVIOUS
